Workbook

Sheet Chart
B2: =Data!AP181 -> STL | C2: =Data!AQ181 -> 0 | D2: =Data!AR181 -> 0.5987654321
B3: =Data!AP182 -> PIT | C3: =Data!AQ182 -> 3 | D3: =Data!AR182 -> 0.5802469136
B4: =Data!AP183 -> CIN | C4: =Data!AQ183 -> 7 | D4: =Data!AR183 -> 0.5555555556
B5: =Data!AP184 -> MIL | C5: =Data!AQ184 -> 23 | D5: =Data!AR184 -> 0.4567901235
B6: =Data!AP185 -> CHC | C6: =Data!AQ185 -> 31 | D6: =Data!AR185 -> 0.4074074074
F38: Note: You must enable macros for this workbook to update correctly

Sheet Data
A1: NLC13 | B1: CHC | C1: W | D1: L | F1: CIN | G1: W | H1: L | J1: MIL | K1: W | L1: L | N1: PIT | O1: W | P1: L | R1: STL | S1: W | T1: L | V1: 2012 | W1: W | X1: L | AA1: =B1 -> CHC | AB1: =F1 -> CIN | AC1: =J1 -> MIL | AD1: =N1 -> PIT | AE1: =R1 -> STL | AF1: =V1 -> 2012 | AH1: =AA1 -> CHC | AI1: =AB1 -> CIN | AJ1: =AC1 -> MIL | AK1: =AD1 -> PIT | AL1: =AE1 -> STL
A2: 2013-03-31 | C2: 0 | D2: 0 | G2: 0 | H2: 0 | K2: 0 | L2: 0 | O2: 0 | P2: 0 | S2: 0 | T2: 0 | W2: 0 | X2: 0 | AA2: 0 | AB2: 0 | AC2: 0 | AD2: 0 | AE2: 0 | AF2: 0 | AH2: 0 | AI2: 0 | AJ2: 0 | AK2: 0 | AL2: 0
A3: 2013-04-01 | B3: 1 | C3: =C2+IF(B3>0,B3,0) -> 1 | D3: =D2-IF(B3<0,B3,0) -> 0 | F3: -1 | G3: =G2+IF(F3>0,F3,0) -> 0 | H3: =H2-IF(F3<0,F3,0) -> 1 | J3: 1 | K3: =K2+IF(J3>0,J3,0) -> 1 | L3: =L2-IF(J3<0,J3,0) -> 0 | N3: -1 | O3: =O2+IF(N3>0,N3,0) -> 0 | P3: =P2-IF(N3<0,N3,0) -> 1 | R3: -1 | S3: =S2+IF(R3>0,R3,0) -> 0 | T3: =T2-IF(R3<0,R3,0) -> 1 | W3: =W2+IF(V3>0,V3,0) -> 0 | X3: =X2-IF(V3<0,V3,0) -> 0 | AA3: =C3-D3 -> 1 | AB3: =G3-H3 -> -1 | AC3: =K3-L3 -> 1 | AD3: =O3-P3 -> -1 | AE3: =S3-T3 -> -1 | AF3: =W3-X3 -> 0 | AH3: =(MAX($AA3:$AE3)-AA3)/2 -> 0 | AI3: =(MAX($AA3:$AE3)-AB3)/2 -> 1 | AJ3: =(MAX($AA3:$AE3)-AC3)/2 -> 0 | AK3: =(MAX($AA3:$AE3)-AD3)/2 -> 1 | AL3: =(MAX($AA3:$AE3)-AE3)/2 -> 1 | AP3: =AP181 -> STL | AQ3: 0 | AR3: 0.5987654321
A4: 2013-04-02 | C4: 1 | D4: 0 | G4: 0 | H4: 1 | J4: -1 | K4: 1 | L4: 1 | O4: 0 | P4: 1 | R4: 1 | S4: 1 | T4: 1 | V4: -1 | W4: 0 | X4: 1 | AA4: 1 | AB4: -1 | AC4: 0 | AD4: -1 | AE4: 0 | AF4: -1 | AH4: =(MAX($AA4:$AE4)-AA4)/2 -> 0 | AI4: =(MAX($AA4:$AE4)-AB4)/2 -> 1 | AJ4: =(MAX($AA4:$AE4)-AC4)/2 -> 0.5 | AK4: =(MAX($AA4:$AE4)-AD4)/2 -> 1 | AL4: =(MAX($AA4:$AE4)-AE4)/2 -> 0.5 | AP4: PIT | AQ4: 3 | AR4: 0.5802469136
A5: 2013-04-03 | B5: -1 | C5: 1 | D5: 1 | F5: 1 | G5: 1 | H5: 1 | J5: -1 | K5: 1 | L5: 2 | N5: 1 | O5: 1 | P5: 1 | R5: -1 | S5: 1 | T5: 2 | V5: 1 | W5: 1 | X5: 1 | AA5: 0 | AB5: 0 | AC5: -1 | AD5: 0 | AE5: -1 | AF5: 0 | AH5: 0 | AI5: 0 | AJ5: 0.5 | AK5: 0 | AL5: 0.5 | AP5: CIN | AQ5: 7 | AR5: 0.5555555556
A6: 2013-04-04 | B6: 1 | C6: 2 | D6: 1 | F6: 1 | G6: 2 | H6: 1 | K6: 1 | L6: 2 | N6: -1 | O6: 1 | P6: 2 | S6: 1 | T6: 2 | V6: -1 | W6: 1 | X6: 2 | AA6: 1 | AB6: 1 | AC6: -1 | AD6: -1 | AE6: -1 | AF6: -1 | AH6: 0 | AI6: 0 | AJ6: 1 | AK6: 1 | AL6: 1 | AP6: MIL | AQ6: 23 | AR6: 0.4567901235
A7: 2013-04-05 | B7: -1 | C7: 2 | D7: 2 | F7: 1 | G7: 3 | H7: 1 | J7: -1 | K7: 1 | L7: 3 | N7: -1 | O7: 1 | P7: 3 | R7: -1 | S7: 1 | T7: 3 | V7: 1 | W7: 2 | X7: 2 | AA7: 0 | AB7: 2 | AC7: -2 | AD7: -2 | AE7: -2 | AF7: 0 | AH7: 1 | AI7: 0 | AJ7: 2 | AK7: 2 | AL7: 2 | AP7: CHC | AQ7: 31 | AR7: 0.4074074074
A8: 2013-04-06 | B8: -1 | C8: 2 | D8: 3 | F8: -1 | G8: 3 | H8: 2 | J8: -1 | K8: 1 | L8: 4 | N8: -1 | O8: 1 | P8: 4 | R8: 1 | S8: 2 | T8: 3 | V8: 1 | W8: 3 | X8: 2 | AA8: -1 | AB8: 1 | AC8: -3 | AD8: -3 | AE8: -1 | AF8: 1 | AH8: 1 | AI8: 0 | AJ8: 2 | AK8: 2 | AL8: 1
A9: 2013-04-07 | B9: -1 | C9: 2 | D9: 4 | F9: 1 | G9: 4 | H9: 2 | J9: -1 | K9: 1 | L9: 5 | N9: -1 | O9: 1 | P9: 5 | R9: 1 | S9: 3 | T9: 3 | V9: 1 | W9: =W8+IF(V9>0,V9,0) -> 4 | X9: 2 | AA9: -2 | AB9: 2 | AC9: -4 | AD9: -4 | AE9: 0 | AF9: 2 | AH9: 2 | AI9: 0 | AJ9: 3 | AK9: 3 | AL9: 1
A10: 2013-04-08 | B10: -1 | C10: 2 | D10: 5 | F10: 1 | G10: 5 | H10: 2 | J10: 1 | K10: 2 | L10: 5 | N10: 1 | O10: 2 | P10: 5 | R10: -1 | S10: 3 | T10: 4 | V10: -1 | W10: 4 | X10: 3 | AA10: -3 | AB10: 3 | AC10: -3 | AD10: -3 | AE10: -1 | AF10: 1 | AH10: 3 | AI10: 0 | AJ10: 3 | AK10: 3 | AL10: 2
A11: 2013-04-09 | B11: 1 | C11: 3 | D11: 5 | F11: -1 | G11: 5 | H11: 3 | J11: -1 | K11: 2 | L11: 6 | N11: 1 | O11: 3 | P11: 5 | R11: 1 | S11: 4 | T11: 4 | V11: -1 | W11: 4 | X11: 4 | AA11: -2 | AB11: 2 | AC11: -4 | AD11: -2 | AE11: 0 | AF11: 0 | AH11: 2 | AI11: 0 | AJ11: 3 | AK11: 2 | AL11: 1
A12: 2013-04-10 | C12: 3 | D12: 5 | F12: -1 | G12: 5 | H12: 4 | K12: 2 | L12: 6 | N12: -1 | O12: 3 | P12: 6 | R12: 1 | S12: 5 | T12: 4 | V12: -1 | W12: 4 | X12: 5 | AA12: -2 | AB12: 1 | AC12: -4 | AD12: -3 | AE12: 1 | AF12: -1 | AH12: 1.5 | AI12: 0 | AJ12: 2.5 | AK12: 2 | AL12: 0
A13: 2013-04-11 | B13: -1 | C13: 3 | D13: 6 | G13: 5 | H13: 4 | K13: 2 | L13: 6 | O13: 3 | P13: 6 | S13: 5 | T13: 4 | V13: -1 | W13: 4 | X13: 6 | AA13: -3 | AB13: 1 | AC13: -4 | AD13: -3 | AE13: 1 | AF13: -2 | AH13: 2 | AI13: 0 | AJ13: 2.5 | AK13: 2 | AL13: 0
A14: 2013-04-12 | B14: 1 | C14: 4 | D14: 6 | F14: -1 | G14: 5 | H14: 5 | J14: -1 | K14: 2 | L14: 7 | N14: 1 | O14: 4 | P14: 6 | R14: 1 | S14: 6 | T14: 4 | W14: 4 | X14: 6 | AA14: -2 | AB14: 0 | AC14: -5 | AD14: -2 | AE14: 2 | AF14: -2 | AH14: 2 | AI14: 1 | AJ14: 3.5 | AK14: 2 | AL14: 0
A15: 2013-04-13 | B15: -1 | C15: 4 | D15: 7 | F15: -1 | G15: 5 | H15: 6 | J15: -1 | K15: 2 | L15: 8 | N15: 1 | O15: 5 | P15: 6 | R15: 1 | S15: 7 | T15: 4 | V15: 1 | W15: 5 | X15: 6 | AA15: -3 | AB15: -1 | AC15: -6 | AD15: -1 | AE15: 3 | AF15: -1 | AH15: 3 | AI15: 2 | AJ15: 4.5 | AK15: 2 | AL15: 0
A16: 2013-04-14 | B16: -1 | C16: 4 | D16: 8 | F16: -1 | G16: 5 | H16: 7 | J16: 1 | K16: 3 | L16: 8 | N16: 1 | O16: 6 | P16: 6 | R16: -1 | S16: 7 | T16: 5 | V16: 1 | W16: 6 | X16: 6 | AA16: -4 | AB16: -2 | AC16: -5 | AD16: 0 | AE16: 2 | AF16: 0 | AH16: 3 | AI16: 2 | AJ16: 3.5 | AK16: 1 | AL16: 0
A17: 2013-04-15 | C17: 4 | D17: 8 | F17: 1 | G17: 6 | H17: 7 | K17: 3 | L17: 8 | N17: -1 | O17: 6 | P17: 7 | R17: 1 | S17: 8 | T17: 5 | V17: -1 | W17: 6 | X17: 7 | AA17: -4 | AB17: -1 | AC17: -5 | AD17: -1 | AE17: 3 | AF17: -1 | AH17: 3.5 | AI17: 2 | AJ17: 4 | AK17: 2 | AL17: 0
A18: 2013-04-16 | B18: -1 | C18: 4 | D18: 9 | F18: 1 | G18: 7 | H18: 7 | J18: 1 | K18: 4 | L18: 8 | O18: 6 | P18: 7 | S18: 8 | T18: 5 | V18: -1 | W18: 6 | X18: 8 | AA18: -5 | AB18: 0 | AC18: -4 | AD18: -1 | AE18: 3 | AF18: -2 | AH18: 4 | AI18: 1.5 | AJ18: 3.5 | AK18: 2 | AL18: 0
A19: 2013-04-17 | C19: 4 | D19: 9 | F19: 1 | G19: 8 | H19: 7 | J19: 1 | K19: 5 | L19: 8 | N19: 1 | O19: 7 | P19: 7 | R19: -1 | S19: 8 | T19: 6 | V19: 1 | W19: 7 | X19: 8 | AA19: -5 | AB19: 1 | AC19: -3 | AD19: 0 | AE19: 2 | AF19: -1 | AH19: 3.5 | AI19: 0.5 | AJ19: 2.5 | AK19: 1 | AL19: 0
A20: 2013-04-18 | B20: 1 | C20: 5 | D20: 9 | F20: 1 | G20: 9 | H20: 7 | J20: 1 | K20: 6 | L20: 8 | N20: -1 | O20: 7 | P20: 8 | R20: 1 | S20: 9 | T20: 6 | V20: -1 | W20: 7 | X20: 9 | AA20: -4 | AB20: 2 | AC20: -2 | AD20: -1 | AE20: 3 | AF20: -2 | AH20: 3.5 | AI20: 0.5 | AJ20: 2.5 | AK20: 2 | AL20: 0
A21: 2013-04-19 | B21: -1 | C21: 5 | D21: 10 | F21: -1 | G21: 9 | H21: 8 | J21: 1 | K21: 7 | L21: 8 | N21: 1 | O21: 8 | P21: 8 | R21: -1 | S21: 9 | T21: 7 | V21: 1 | W21: 8 | X21: 9 | AA21: -5 | AB21: 1 | AC21: -1 | AD21: 0 | AE21: 2 | AF21: -1 | AH21: 3.5 | AI21: 0.5 | AJ21: 1.5 | AK21: 1 | AL21: 0
A22: 2013-04-20 | B22: -1 | C22: 5 | D22: 11 | F22: 1 | G22: 10 | H22: 8 | J22: 1 | K22: 8 | L22: 8 | N22: 1 | O22: 9 | P22: 8 | R22: 1 | S22: 10 | T22: 7 | V22: 1 | W22: 9 | X22: 9 | AA22: -6 | AB22: 2 | AC22: 0 | AD22: 1 | AE22: 3 | AF22: 0 | AH22: 4.5 | AI22: 0.5 | AJ22: 1.5 | AK22: 1 | AL22: 0
A23: 2013-04-21 | B23: -1 | C23: =C22+IF(B23>0,B23,0) -> 5 | D23: =D22-IF(B23<0,B23,0) -> 12 | F23: 1 | G23: 11 | H23: 8 | J23: 1 | K23: 9 | L23: 8 | N23: 1 | O23: =O22+IF(N23>0,N23,0) -> 10 | P23: =P22-IF(N23<0,N23,0) -> 8 | R23: -1 | S23: =S22+IF(R23>0,R23,0) -> 10 | T23: =T22-IF(R23<0,R23,0) -> 8 | V23: -1 | W23: 9 | X23: 10 | AA23: -7 | AB23: 3 | AC23: 1 | AD23: 2 | AE23: 2 | AF23: -1 | AH23: 5 | AI23: 0 | AJ23: 1 | AK23: 0.5 | AL23: 0.5
A24: 2013-04-22 | B24: -1 | C24: 5 | D24: 13 | F24: 1 | G24: 12 | H24: 8 | J24: 1 | K24: 10 | L24: 8 | N24: -1 | O24: 10 | P24: 9 | R24: 1 | S24: 11 | T24: 8 | W24: 9 | X24: 10 | AA24: -8 | AB24: 4 | AC24: 2 | AD24: 1 | AE24: 3 | AF24: -1 | AH24: 6 | AI24: 0 | AJ24: 1 | AK24: 1.5 | AL24: 0.5
A25: 2013-04-23 | B25: 1 | C25: 6 | D25: 13 | F25: -1 | G25: 12 | H25: 9 | J25: 1 | K25: 11 | L25: 8 | N25: 1 | O25: 11 | P25: 9 | R25: 1 | S25: 12 | T25: 8 | V25: -1 | W25: 9 | X25: 11 | AA25: -7 | AB25: 3 | AC25: 3 | AD25: 2 | AE25: 4 | AF25: -2 | AH25: 5.5 | AI25: 0.5 | AJ25: 0.5 | AK25: 1 | AL25: 0
A26: 2013-04-24 | B26: -1 | C26: 6 | D26: 14 | F26: 1 | G26: 13 | H26: 9 | J26: -1 | K26: 11 | L26: 9 | N26: 1 | O26: 12 | P26: 9 | R26: 1 | S26: 13 | T26: 8 | V26: -1 | W26: 9 | X26: 12 | AA26: -8 | AB26: 4 | AC26: 2 | AD26: 3 | AE26: 5 | AF26: -3 | AH26: 6.5 | AI26: 0.5 | AJ26: 1.5 | AK26: 1 | AL26: 0
A27: 2013-04-25 | B27: 1 | C27: 7 | D27: 14 | F27: -1 | G27: 13 | H27: 10 | K27: 11 | L27: 9 | N27: 1 | O27: 13 | P27: 9 | S27: 13 | T27: 8 | V27: 1 | W27: 10 | X27: 12 | AA27: -7 | AB27: 3 | AC27: 2 | AD27: 4 | AE27: 5 | AF27: -2 | AH27: 6 | AI27: 1 | AJ27: 1.5 | AK27: 0.5 | AL27: 0
A28: 2013-04-26 | B28: 1 | C28: 8 | D28: 14 | F28: -1 | G28: 13 | H28: 11 | J28: -1 | K28: 11 | L28: 10 | N28: -1 | O28: 13 | P28: 10 | R28: 1 | S28: 14 | T28: 8 | V28: 1 | W28: 11 | X28: 12 | AA28: -6 | AB28: 2 | AC28: 1 | AD28: 3 | AE28: 6 | AF28: -1 | AH28: 6 | AI28: 2 | AJ28: 2.5 | AK28: 1.5 | AL28: 0
A29: 2013-04-27 | B29: 1 | C29: 9 | D29: 14 | F29: -1 | G29: 13 | H29: 12 | J29: 1 | K29: 12 | L29: 10 | N29: 1 | O29: 14 | P29: 10 | R29: -1 | S29: 14 | T29: 9 | V29: -1 | W29: 11 | X29: 13 | AA29: -5 | AB29: 1 | AC29: 2 | AD29: 4 | AE29: 5 | AF29: -2 | AH29: 5 | AI29: 2 | AJ29: 1.5 | AK29: 0.5 | AL29: 0
A30: 2013-04-28 | B30: -1 | C30: 9 | D30: 15 | F30: 1 | G30: 14 | H30: 12 | J30: -1 | K30: 12 | L30: 11 | N30: 1 | O30: 15 | P30: 10 | R30: -1 | S30: 14 | T30: 10 | V30: -1 | W30: 11 | X30: 14 | AA30: -6 | AB30: 2 | AC30: 1 | AD30: 5 | AE30: 4 | AF30: -3 | AH30: 5.5 | AI30: 1.5 | AJ30: 2 | AK30: 0 | AL30: 0.5
A31: 2013-04-29 | B31: 1 | C31: 10 | D31: 15 | F31: 1 | G31: 15 | H31: 12 | J31: 1 | K31: 13 | L31: 11 | N31: -1 | O31: 15 | P31: 11 | R31: -1 | S31: 14 | T31: 11 | W31: 11 | X31: 14 | AA31: -5 | AB31: 3 | AC31: 2 | AD31: 4 | AE31: 3 | AF31: -3 | AH31: 4.5 | AI31: 0.5 | AJ31: 1 | AK31: 0 | AL31: 0.5
A32: 2013-04-30 | B32: -1 | C32: 10 | D32: 16 | F32: -1 | G32: 15 | H32: 13 | J32: 1 | K32: 14 | L32: 11 | N32: -1 | O32: 15 | P32: 12 | R32: 1 | S32: 15 | T32: 11 | V32: 1 | W32: 12 | X32: 14 | AA32: -6 | AB32: 2 | AC32: 3 | AD32: 3 | AE32: 4 | AF32: -2 | AH32: 5 | AI32: 1 | AJ32: 0.5 | AK32: 0.5 | AL32: 0
A33: 2013-05-01 | B33: 1 | C33: 11 | D33: 16 | F33: -1 | G33: 15 | H33: 14 | J33: -1 | K33: 14 | L33: 12 | N33: 1 | O33: 16 | P33: 12 | R33: 1 | S33: 16 | T33: 11 | V33: -1 | W33: 12 | X33: 15 | AA33: -5 | AB33: 1 | AC33: 2 | AD33: 4 | AE33: 5 | AF33: -3 | AH33: 5 | AI33: 2 | AJ33: 1.5 | AK33: 0.5 | AL33: 0
A34: 2013-05-02 | B34: -1 | C34: 11 | D34: 17 | G34: 15 | H34: 14 | J34: -1 | K34: 14 | L34: 13 | O34: 16 | P34: 12 | R34: 1 | S34: 17 | T34: 11 | V34: -1 | W34: 12 | X34: 16 | AA34: -6 | AB34: 1 | AC34: 1 | AD34: 4 | AE34: 6 | AF34: -4 | AH34: 6 | AI34: 2.5 | AJ34: 2.5 | AK34: 1 | AL34: 0
A35: 2013-05-03 | B35: -1 | C35: 11 | D35: 18 | F35: 1 | G35: 16 | H35: 14 | J35: -1 | K35: 14 | L35: 14 | N35: 1 | O35: 17 | P35: 12 | R35: 1 | S35: 18 | T35: 11 | V35: -1 | W35: 12 | X35: 17 | AA35: =C35-D35 -> -7 | AB35: =G35-H35 -> 2 | AC35: =K35-L35 -> 0 | AD35: =O35-P35 -> 5 | AE35: =S35-T35 -> 7 | AF35: =W35-X35 -> -5 | AH35: 7 | AI35: 2.5 | AJ35: 3.5 | AK35: 1 | AL35: 0
A36: 2013-05-04 | B36: -1 | C36: 11 | D36: 19 | F36: 1 | G36: 17 | H36: 14 | J36: -1 | K36: 14 | L36: 15 | N36: -1 | O36: 17 | P36: 13 | R36: 1 | S36: 19 | T36: 11 | V36: 1 | W36: 13 | X36: 17 | AA36: -8 | AB36: 3 | AC36: -1 | AD36: 4 | AE36: 8 | AF36: -4 | AH36: 8 | AI36: 2.5 | AJ36: 4.5 | AK36: 2 | AL36: 0
A37: 2013-05-05 | B37: -1 | C37: 11 | D37: 20 | F37: 1 | G37: 18 | H37: 14 | J37: -1 | K37: 14 | L37: 16 | N37: -1 | O37: 17 | P37: 14 | R37: 1 | S37: 20 | T37: 11 | V37: -1 | W37: 13 | X37: 18 | AA37: -9 | AB37: 4 | AC37: -2 | AD37: 3 | AE37: 9 | AF37: -5 | AH37: 9 | AI37: 2.5 | AJ37: 5.5 | AK37: 3 | AL37: 0
A38: 2013-05-06 | B38: 1 | C38: 12 | D38: 20 | F38: -1 | G38: 18 | H38: 15 | K38: 14 | L38: 16 | O38: 17 | P38: 14 | S38: 20 | T38: 11 | W38: 13 | X38: 18 | AA38: -8 | AB38: 3 | AC38: -2 | AD38: 3 | AE38: 9 | AF38: -5 | AH38: 8.5 | AI38: 3 | AJ38: 5.5 | AK38: 3 | AL38: 0
A39: 2013-05-07 | B39: 1 | C39: =C38+IF(B39>0,B39,0) -> 13 | D39: =D38-IF(B39<0,B39,0) -> 20 | F39: 1 | G39: =G38+IF(F39>0,F39,0) -> 19 | H39: =H38-IF(F39<0,F39,0) -> 15 | J39: 1 | K39: =K38+IF(J39>0,J39,0) -> 15 | L39: =L38-IF(J39<0,J39,0) -> 16 | N39: 1 | O39: 18 | P39: 14 | R39: -1 | S39: =S38+IF(R39>0,R39,0) -> 20 | T39: =T38-IF(R39<0,R39,0) -> 12 | V39: 1 | W39: =W38+IF(V39>0,V39,0) -> 14 | X39: =X38-IF(V39<0,V39,0) -> 18 | AA39: -7 | AB39: 4 | AC39: -1 | AD39: 4 | AE39: 8 | AF39: -4 | AH39: 7.5 | AI39: 2 | AJ39: 4.5 | AK39: 2 | AL39: 0
A40: 2013-05-08 | B40: -1 | C40: 13 | D40: 21 | F40: -1 | G40: 19 | H40: 16 | J40: -1 | K40: 15 | L40: 17 | N40: -1 | O40: 18 | P40: 15 | R40: 1 | S40: 21 | T40: 12 | V40: 1 | W40: 15 | X40: 18 | AA40: -8 | AB40: 3 | AC40: -2 | AD40: 3 | AE40: 9 | AF40: -3 | AH40: 8.5 | AI40: 3 | AJ40: 5.5 | AK40: 3 | AL40: 0
A41: 2013-05-09 | C41: 13 | D41: 21 | G41: 19 | H41: 16 | K41: 15 | L41: 17 | N41: -1 | O41: 18 | P41: 16 | S41: 21 | T41: 12 | V41: -1 | W41: 15 | X41: 19 | AA41: -8 | AB41: 3 | AC41: -2 | AD41: 2 | AE41: 9 | AF41: -4 | AH41: 8.5 | AI41: 3 | AJ41: 5.5 | AK41: 3.5 | AL41: 0
A42: 2013-05-10 | B42: -1 | C42: 13 | D42: 22 | F42: 1 | G42: 20 | H42: 16 | J42: -1 | K42: 15 | L42: 18 | N42: 1 | O42: 19 | P42: 16 | R42: 1 | S42: 22 | T42: 12 | V42: -1 | W42: 15 | X42: 20 | AA42: -9 | AB42: 4 | AC42: -3 | AD42: 3 | AE42: 10 | AF42: -5 | AH42: 9.5 | AI42: 3 | AJ42: 6.5 | AK42: 3.5 | AL42: 0
A43: 2013-05-11 | B43: 1 | C43: 14 | D43: 22 | F43: 1 | G43: 21 | H43: 16 | J43: -1 | K43: 15 | L43: 19 | N43: 1 | O43: 20 | P43: 16 | R43: 1 | S43: 23 | T43: 12 | V43: 1 | W43: 16 | X43: 20 | AA43: -8 | AB43: 5 | AC43: -4 | AD43: 4 | AE43: 11 | AF43: -4 | AH43: 9.5 | AI43: 3 | AJ43: 7.5 | AK43: 3.5 | AL43: 0
A44: 2013-05-12 | B44: 1 | C44: 15 | D44: 22 | F44: 1 | G44: 22 | H44: 16 | J44: -1 | K44: 15 | L44: 20 | N44: 1 | O44: 21 | P44: 16 | R44: -1 | S44: 23 | T44: 13 | V44: -1 | W44: 16 | X44: 21 | AA44: -7 | AB44: 6 | AC44: -5 | AD44: 5 | AE44: 10 | AF44: -5 | AH44: 8.5 | AI44: 2 | AJ44: 7.5 | AK44: 2.5 | AL44: 0
A45: 2013-05-13 | B45: 1 | C45: =C44+IF(B45>0,B45,0) -> 16 | D45: =D44-IF(B45<0,B45,0) -> 22 | G45: =G44+IF(F45>0,F45,0) -> 22 | H45: =H44-IF(F45<0,F45,0) -> 16 | J45: 1 | K45: =K44+IF(J45>0,J45,0) -> 16 | L45: =L44-IF(J45<0,J45,0) -> 20 | N45: -1 | O45: 21 | P45: 17 | R45: 1 | S45: =S44+IF(R45>0,R45,0) -> 24 | T45: =T44-IF(R45<0,R45,0) -> 13 | V45: -1 | W45: =W44+IF(V45>0,V45,0) -> 16 | X45: =X44-IF(V45<0,V45,0) -> 22 | AA45: -6 | AB45: 6 | AC45: -4 | AD45: 4 | AE45: 11 | AF45: -6 | AH45: 8.5 | AI45: 2.5 | AJ45: 7.5 | AK45: 3.5 | AL45: 0
A46: 2013-05-14 | B46: -1 | C46: 16 | D46: 23 | F46: 1 | G46: 23 | H46: 16 | J46: -1 | K46: 16 | L46: 21 | N46: 1 | O46: 22 | P46: 17 | R46: 1 | S46: 25 | T46: 13 | V46: -1 | W46: 16 | X46: 23 | AA46: -7 | AB46: 7 | AC46: -5 | AD46: 5 | AE46: 12 | AF46: -7 | AH46: 9.5 | AI46: 2.5 | AJ46: 8.5 | AK46: 3.5 | AL46: 0
A47: 2013-05-15 | B47: 1 | C47: 17 | D47: 23 | F47: 1 | G47: 24 | H47: 16 | J47: -1 | K47: 16 | L47: 22 | N47: 1 | O47: 23 | P47: 17 | R47: 1 | S47: 26 | T47: 13 | V47: -1 | W47: 16 | X47: 24 | AA47: -6 | AB47: 8 | AC47: -6 | AD47: 6 | AE47: 13 | AF47: -8 | AH47: 9.5 | AI47: 2.5 | AJ47: 9.5 | AK47: 3.5 | AL47: 0
A48: 2013-05-16 | C48: 17 | D48: 23 | F48: 1 | G48: 25 | H48: 16 | J48: -1 | K48: 16 | L48: 23 | N48: 1 | O48: 24 | P48: 17 | R48: -1 | S48: 26 | T48: 14 | V48: 1 | W48: 17 | X48: 24 | AA48: -6 | AB48: 9 | AC48: -7 | AD48: 7 | AE48: 12 | AF48: -7 | AH48: 9 | AI48: 1.5 | AJ48: 9.5 | AK48: 2.5 | AL48: 0
A49: 2013-05-17 | B49: -1 | C49: 17 | D49: 24 | F49: -1 | G49: 25 | H49: 17 | J49: -1 | K49: 16 | L49: 24 | N49: 1 | O49: 25 | P49: 17 | R49: 1 | S49: 27 | T49: 14 | V49: -1 | W49: 17 | X49: 25 | AA49: -7 | AB49: 8 | AC49: -8 | AD49: 8 | AE49: 13 | AF49: -8 | AH49: 10 | AI49: 2.5 | AJ49: 10.5 | AK49: 2.5 | AL49: 0
A50: 2013-05-18 | B50: 1 | C50: 18 | D50: 24 | F50: 1 | G50: 26 | H50: 17 | J50: 1 | K50: 17 | L50: 24 | N50: -1 | O50: 25 | P50: 18 | R50: -1 | S50: 27 | T50: 15 | V50: -1 | W50: 17 | X50: 26 | AA50: -6 | AB50: 9 | AC50: -7 | AD50: 7 | AE50: 12 | AF50: -9 | AH50: 9 | AI50: 1.5 | AJ50: 9.5 | AK50: 2.5 | AL50: 0
A51: 2013-05-19 | B51: -1 | C51: 18 | D51: 25 | F51: -1 | G51: 26 | H51: 18 | J51: -1 | K51: 17 | L51: 25 | N51: 1 | O51: 26 | P51: 18 | R51: 1 | S51: 28 | T51: 15 | V51: 1 | W51: 18 | X51: 26 | AA51: -7 | AB51: 8 | AC51: -8 | AD51: 8 | AE51: 13 | AF51: -8 | AH51: 10 | AI51: 2.5 | AJ51: 10.5 | AK51: 2.5 | AL51: 0
A52: 2013-05-20 | C52: 18 | D52: 25 | F52: 1 | G52: 27 | H52: 18 | J52: -1 | K52: 17 | L52: 26 | O52: 26 | P52: 18 | R52: -1 | S52: 28 | T52: 16 | W52: 18 | X52: 26 | AA52: -7 | AB52: 9 | AC52: -9 | AD52: 8 | AE52: 12 | AF52: -8 | AH52: 9.5 | AI52: 1.5 | AJ52: 10.5 | AK52: 2 | AL52: 0
A53: 2013-05-21 | B53: -1 | C53: 18 | D53: 26 | F53: 1 | G53: 28 | H53: 18 | J53: 1 | K53: 18 | L53: 26 | N53: 1 | O53: 27 | P53: 18 | R53: 1 | S53: 29 | T53: 16 | V53: 1 | W53: 19 | X53: 26 | AA53: -8 | AB53: 10 | AC53: -8 | AD53: 9 | AE53: 13 | AF53: -7 | AH53: 10.5 | AI53: 1.5 | AJ53: 10.5 | AK53: 2 | AL53: 0
A54: 2013-05-22 | B54: -1 | C54: 18 | D54: 27 | F54: 1 | G54: 29 | H54: 18 | J54: -1 | K54: 18 | L54: 27 | N54: 1 | O54: 28 | P54: 18 | R54: 1 | S54: 30 | T54: 16 | V54: -1 | W54: 19 | X54: 27 | AA54: -9 | AB54: 11 | AC54: -9 | AD54: 10 | AE54: 14 | AF54: -8 | AH54: 11.5 | AI54: 1.5 | AJ54: 11.5 | AK54: 2 | AL54: 0
A55: 2013-05-23 | B55: -1 | C55: 18 | D55: 28 | G55: 29 | H55: 18 | K55: 18 | L55: 27 | N55: 1 | O55: 29 | P55: 18 | S55: 30 | T55: 16 | V55: -1 | W55: 19 | X55: 28 | AA55: -10 | AB55: 11 | AC55: -9 | AD55: 11 | AE55: 14 | AF55: -9 | AH55: 12 | AI55: 1.5 | AJ55: 11.5 | AK55: 1.5 | AL55: 0
A56: 2013-05-24 | B56: -1 | C56: 18 | D56: 29 | F56: 1 | G56: 30 | H56: 18 | J56: 1 | K56: 19 | L56: 27 | N56: -1 | O56: 29 | P56: 19 | R56: 1 | S56: 31 | T56: 16 | V56: 1 | W56: 20 | X56: 28 | AA56: -11 | AB56: 12 | AC56: -8 | AD56: 10 | AE56: 15 | AF56: -8 | AH56: 13 | AI56: 1.5 | AJ56: 11.5 | AK56: 2.5 | AL56: 0
A57: 2013-05-25 | B57: -1 | C57: 18 | D57: 30 | F57: 1 | G57: 31 | H57: 18 | J57: -1 | K57: 19 | L57: 28 | N57: 1 | O57: 30 | P57: 19 | R57: -1 | S57: 31 | T57: 17 | V57: 1 | W57: 21 | X57: 28 | AA57: -12 | AB57: 13 | AC57: -9 | AD57: 11 | AE57: 14 | AF57: -7 | AH57: 13 | AI57: 0.5 | AJ57: 11.5 | AK57: 1.5 | AL57: 0
A58: 2013-05-26 | B58: 1 | C58: 19 | D58: 30 | F58: -1 | G58: 31 | H58: 19 | J58: -1 | K58: 19 | L58: 29 | N58: 1 | O58: 31 | P58: 19 | R58: 1 | S58: 32 | T58: 17 | V58: 1 | W58: 22 | X58: 28 | AA58: -11 | AB58: 12 | AC58: -10 | AD58: 12 | AE58: 15 | AF58: -6 | AH58: 13 | AI58: 1.5 | AJ58: 12.5 | AK58: 1.5 | AL58: 0
A59: 2013-05-27 | B59: 1 | C59: 20 | D59: 30 | F59: 1 | G59: 32 | H59: 19 | J59: -1 | K59: 19 | L59: 30 | N59: -1 | O59: 31 | P59: 20 | R59: 1 | S59: 33 | T59: 17 | V59: 1 | W59: 23 | X59: 28 | AA59: -10 | AB59: 13 | AC59: -11 | AD59: 11 | AE59: 16 | AF59: -5 | AH59: 13 | AI59: 1.5 | AJ59: 13.5 | AK59: 2.5 | AL59: 0
A60: 2013-05-28 | C60: 20 | D60: 30 | F60: 1 | G60: 33 | H60: 19 | J60: -1 | K60: 19 | L60: 31 | N60: 1 | O60: 32 | P60: 20 | R60: 1 | S60: 34 | T60: 17 | V60: -1 | W60: 23 | X60: 29 | AA60: -10 | AB60: 14 | AC60: -12 | AD60: 12 | AE60: 17 | AF60: -6 | AH60: 13.5 | AI60: 1.5 | AJ60: 14.5 | AK60: 2.5 | AL60: 0
A61: 2013-05-29 | B61: 1 | C61: =C60+IF(B61>0,B61,0) -> 21 | D61: =D60-IF(B61<0,B61,0) -> 30 | F61: -1 | G61: 33 | H61: 20 | J61: -1 | K61: 19 | L61: 32 | N61: 1 | O61: =O60+IF(N61>0,N61,0) -> 33 | P61: =P60-IF(N61<0,N61,0) -> 20 | R61: 1 | S61: 35 | T61: 17 | V61: 1 | W61: 24 | X61: 29 | AA61: -9 | AB61: 13 | AC61: -13 | AD61: 13 | AE61: 18 | AF61: -5 | AH61: 13.5 | AI61: 2.5 | AJ61: 15.5 | AK61: 2.5 | AL61: 0
A62: 2013-05-30 | B62: 1 | C62: 22 | D62: 30 | F62: -1 | G62: 33 | H62: 21 | J62: -1 | K62: 19 | L62: 33 | N62: 1 | O62: 34 | P62: 20 | R62: -1 | S62: 35 | T62: 18 | V62: -1 | W62: 24 | X62: 30 | AA62: -8 | AB62: 12 | AC62: -14 | AD62: 14 | AE62: 17 | AF62: -6 | AH62: 12.5 | AI62: 2.5 | AJ62: 15.5 | AK62: 1.5 | AL62: 0
A63: 2013-05-31 | B63: 1 | C63: 23 | D63: 30 | F63: 1 | G63: 34 | H63: 21 | J63: 1 | K63: 20 | L63: 33 | N63: -1 | O63: 34 | P63: 21 | S63: 35 | T63: 18 | W63: 24 | X63: 30 | AA63: -7 | AB63: 13 | AC63: -13 | AD63: 13 | AE63: 17 | AF63: -6 | AH63: 12 | AI63: 2 | AJ63: 15 | AK63: 2 | AL63: 0
A64: 2013-06-01 | B64: -1 | C64: 23 | D64: 31 | F64: 1 | G64: 35 | H64: 21 | J64: 1 | K64: 21 | L64: 33 | N64: -1 | O64: 34 | P64: 22 | R64: 2 | S64: 37 | T64: 18 | V64: -1 | W64: 24 | X64: 31 | AA64: -8 | AB64: 14 | AC64: -12 | AD64: 12 | AE64: 19 | AF64: -7 | AH64: 13.5 | AI64: 2.5 | AJ64: 15.5 | AK64: 3.5 | AL64: 0
A65: 2013-06-02 | B65: -1 | C65: 23 | D65: 32 | F65: -1 | G65: 35 | H65: 22 | J65: -1 | K65: 21 | L65: 34 | N65: 1 | O65: 35 | P65: 22 | R65: -1 | S65: 37 | T65: 19 | V65: 1 | W65: 25 | X65: 31 | AA65: -9 | AB65: 13 | AC65: -13 | AD65: 13 | AE65: 18 | AF65: -6 | AH65: 13.5 | AI65: 2.5 | AJ65: 15.5 | AK65: 2.5 | AL65: 0
A66: 2013-06-03 | C66: 23 | D66: 32 | F66: 1 | G66: 36 | H66: 22 | J66: -1 | K66: 21 | L66: 35 | N66: -1 | O66: 35 | P66: 23 | R66: 1 | S66: 38 | T66: 19 | V66: 1 | W66: 26 | X66: 31 | AA66: -9 | AB66: 14 | AC66: -14 | AD66: 12 | AE66: 19 | AF66: -5 | AH66: 14 | AI66: 2.5 | AJ66: 16.5 | AK66: 3.5 | AL66: 0
A67: 2013-06-04 | B67: -1 | C67: 23 | D67: 33 | F67: -1 | G67: 36 | H67: 23 | J67: 1 | K67: 22 | L67: 35 | N67: -1 | O67: 35 | P67: 24 | R67: -1 | S67: 38 | T67: 20 | V67: 1 | W67: 27 | X67: 31 | AA67: =C67-D67 -> -10 | AB67: =G67-H67 -> 13 | AC67: =K67-L67 -> -13 | AD67: =O67-P67 -> 11 | AE67: =S67-T67 -> 18 | AF67: =W67-X67 -> -4 | AH67: 14 | AI67: 2.5 | AJ67: 15.5 | AK67: 3.5 | AL67: 0
A68: 2013-06-05 | B68: 1 | C68: 24 | D68: 33 | F68: -1 | G68: 36 | H68: 24 | J68: -1 | K68: 22 | L68: 36 | N68: -1 | O68: 35 | P68: 25 | R68: -1 | S68: 38 | T68: 21 | V68: -1 | W68: 27 | X68: 32 | AA68: -9 | AB68: 12 | AC68: -14 | AD68: 10 | AE68: 17 | AF68: -5 | AH68: =(MAX($AA68:$AE68)-AA68)/2 -> 13 | AI68: =(MAX($AA68:$AE68)-AB68)/2 -> 2.5 | AJ68: =(MAX($AA68:$AE68)-AC68)/2 -> 15.5 | AK68: =(MAX($AA68:$AE68)-AD68)/2 -> 3.5 | AL68: =(MAX($AA68:$AE68)-AE68)/2 -> 0
A69: 2013-06-06 | C69: 24 | D69: 33 | G69: 36 | H69: 24 | J69: -1 | K69: 22 | L69: 37 | O69: 35 | P69: 25 | R69: 1 | S69: =S68+IF(R69>0,R69,0) -> 39 | T69: =T68-IF(R69<0,R69,0) -> 21 | V69: 1 | W69: 28 | X69: 32 | AA69: -9 | AB69: 12 | AC69: -15 | AD69: 10 | AE69: 18 | AF69: -4 | AH69: 13.5 | AI69: 3 | AJ69: 16.5 | AK69: 4 | AL69: 0
A70: 2013-06-07 | B70: -1 | C70: =C69+IF(B70>0,B70,0) -> 24 | D70: =D69-IF(B70<0,B70,0) -> 34 | F70: -1 | G70: =G69+IF(F70>0,F70,0) -> 36 | H70: =H69-IF(F70<0,F70,0) -> 25 | J70: 1 | K70: 23 | L70: 37 | N70: 1 | O70: 36 | P70: 25 | R70: 1 | S70: 40 | T70: 21 | W70: 28 | X70: 32 | AA70: -10 | AB70: 11 | AC70: -14 | AD70: 11 | AE70: 19 | AF70: -4 | AH70: 14.5 | AI70: 4 | AJ70: 16.5 | AK70: 4 | AL70: 0
A71: 2013-06-08 | B71: -1 | C71: =C70+IF(B71>0,B71,0) -> 24 | D71: =D70-IF(B71<0,B71,0) -> 35 | F71: 1 | G71: =G70+IF(F71>0,F71,0) -> 37 | H71: =H70-IF(F71<0,F71,0) -> 25 | J71: 1 | K71: =K70+IF(J71>0,J71,0) -> 24 | L71: =L70-IF(J71<0,J71,0) -> 37 | N71: 1 | O71: 37 | P71: 25 | R71: -1 | S71: =S70+IF(R71>0,R71,0) -> 40 | T71: =T70-IF(R71<0,R71,0) -> 22 | V71: -1 | W71: =W70+IF(V71>0,V71,0) -> 28 | X71: =X70-IF(V71<0,V71,0) -> 33 | AA71: -11 | AB71: 12 | AC71: -13 | AD71: 12 | AE71: 18 | AF71: -5 | AH71: 14.5 | AI71: 3 | AJ71: 15.5 | AK71: 3 | AL71: 0
A72: 2013-06-09 | B72: 1 | C72: =C71+IF(B72>0,B72,0) -> 25 | D72: =D71-IF(B72<0,B72,0) -> 35 | F72: -1 | G72: =G71+IF(F72>0,F72,0) -> 37 | H72: =H71-IF(F72<0,F72,0) -> 26 | J72: 1 | K72: 25 | L72: 37 | N72: -1 | O72: 37 | P72: 26 | R72: 1 | S72: 41 | T72: 22 | V72: -1 | W72: 28 | X72: 34 | AA72: -10 | AB72: 11 | AC72: -12 | AD72: 11 | AE72: 19 | AF72: -6 | AH72: 14.5 | AI72: 4 | AJ72: 15.5 | AK72: 4 | AL72: 0
A73: 2013-06-10 | B73: -1 | C73: =C72+IF(B73>0,B73,0) -> 25 | D73: =D72-IF(B73<0,B73,0) -> 36 | F73: 1 | G73: =G72+IF(F73>0,F73,0) -> 38 | H73: =H72-IF(F73<0,F73,0) -> 26 | J73: 1 | K73: 26 | L73: 37 | O73: 37 | P73: 26 | S73: 41 | T73: 22 | V73: -1 | W73: 28 | X73: 35 | AA73: -11 | AB73: 12 | AC73: -11 | AD73: 11 | AE73: 19 | AF73: -7 | AH73: 15 | AI73: 3.5 | AJ73: 15 | AK73: 4 | AL73: 0
A74: 2013-06-11 | B74: -1 | C74: 25 | D74: 37 | F74: 1 | G74: 39 | H74: 26 | J74: -1 | K74: 26 | L74: 38 | N74: 1 | O74: 38 | P74: 26 | R74: 1 | S74: 42 | T74: 22 | V74: 1 | W74: 29 | X74: 35 | AA74: -12 | AB74: 13 | AC74: -12 | AD74: 12 | AE74: 20 | AF74: -6 | AH74: 16 | AI74: 3.5 | AJ74: 16 | AK74: 4 | AL74: 0
A75: 2013-06-12 | B75: -1 | C75: 25 | D75: 38 | F75: 1 | G75: 40 | H75: 26 | J75: 1 | K75: 27 | L75: 38 | N75: 1 | O75: 39 | P75: 26 | R75: -1 | S75: 42 | T75: 23 | V75: 1 | W75: 30 | X75: 35 | AA75: -13 | AB75: 14 | AC75: -11 | AD75: 13 | AE75: 19 | AF75: -5 | AH75: 16 | AI75: 2.5 | AJ75: 15 | AK75: 3 | AL75: 0
A76: 2013-06-13 | B76: 1 | C76: 26 | D76: 38 | F76: -1 | G76: 40 | H76: 27 | K76: 27 | L76: 38 | N76: -1 | O76: 39 | P76: 27 | R76: 1 | S76: 43 | T76: 23 | V76: -1 | W76: 30 | X76: 36 | AA76: -12 | AB76: 13 | AC76: -11 | AD76: 12 | AE76: 20 | AF76: -6 | AH76: 16 | AI76: 3.5 | AJ76: 15.5 | AK76: 4 | AL76: 0
A77: 2013-06-14 | B77: 1 | C77: 27 | D77: 38 | F77: 1 | G77: 41 | H77: 27 | J77: -1 | K77: 27 | L77: 39 | N77: 1 | O77: 40 | P77: 27 | R77: -1 | S77: 43 | T77: 24 | V77: 1 | W77: 31 | X77: 36 | AA77: -11 | AB77: 14 | AC77: -12 | AD77: 13 | AE77: 19 | AF77: -5 | AH77: 15 | AI77: 2.5 | AJ77: 15.5 | AK77: 3 | AL77: 0
A78: 2013-06-15 | B78: 1 | C78: 28 | D78: 38 | F78: -1 | G78: 41 | H78: 28 | J78: 1 | K78: 28 | L78: 39 | N78: -1 | O78: =O77+IF(N78>0,N78,0) -> 40 | P78: =P77-IF(N78<0,N78,0) -> 28 | R78: 1 | S78: 44 | T78: 24 | V78: -1 | W78: 31 | X78: 37 | AA78: -10 | AB78: 13 | AC78: -11 | AD78: 12 | AE78: 20 | AF78: -6 | AH78: 15 | AI78: 3.5 | AJ78: 15.5 | AK78: 4 | AL78: 0
A79: 2013-06-16 | B79: -1 | C79: 28 | D79: 39 | F79: 1 | G79: 42 | H79: 28 | J79: -1 | K79: 28 | L79: 40 | N79: 1 | O79: 41 | P79: 28 | R79: -1 | S79: 44 | T79: 25 | V79: 1 | W79: 32 | X79: 37 | AA79: -11 | AB79: 14 | AC79: -12 | AD79: 13 | AE79: 19 | AF79: -5 | AH79: 15 | AI79: 2.5 | AJ79: 15.5 | AK79: 3 | AL79: 0
A80: 2013-06-17 | B80: -1 | C80: 28 | D80: 40 | F80: 1 | G80: 43 | H80: 28 | K80: 28 | L80: 40 | N80: -1 | O80: 41 | P80: 29 | R80: 1 | S80: 45 | T80: 25 | W80: 32 | X80: 37 | AA80: -12 | AB80: 15 | AC80: -12 | AD80: 12 | AE80: 20 | AF80: -5 | AH80: 16 | AI80: 2.5 | AJ80: 16 | AK80: 4 | AL80: 0
A81: 2013-06-18 | B81: 1 | C81: 29 | D81: 40 | F81: -1 | G81: 43 | H81: 29 | J81: -1 | K81: 28 | L81: 41 | N81: 1 | O81: 42 | P81: 29 | R81: -1 | S81: 45 | T81: 26 | V81: 1 | W81: 33 | X81: 37 | AA81: -11 | AB81: 14 | AC81: -13 | AD81: 13 | AE81: 19 | AF81: -4 | AH81: 15 | AI81: 2.5 | AJ81: 16 | AK81: 3 | AL81: 0
A82: 2013-06-19 | B82: -1 | C82: 29 | D82: 41 | F82: 1 | G82: 44 | H82: 29 | J82: 1 | K82: 29 | L82: 41 | N82: -1 | O82: 42 | P82: 30 | R82: 1 | S82: 46 | T82: 26 | V82: -1 | W82: 33 | X82: 38 | AA82: -12 | AB82: 15 | AC82: -12 | AD82: 12 | AE82: 20 | AF82: -5 | AH82: 16 | AI82: 2.5 | AJ82: 16 | AK82: 4 | AL82: 0
A83: 2013-06-20 | B83: -1 | C83: 29 | D83: 42 | F83: -1 | G83: 44 | H83: 30 | J83: -1 | K83: 29 | L83: 42 | N83: 1 | O83: 43 | P83: 30 | R83: 1 | S83: 47 | T83: 26 | V83: -1 | W83: 33 | X83: 39 | AA83: -13 | AB83: 14 | AC83: -13 | AD83: 13 | AE83: 21 | AF83: -6 | AH83: 17 | AI83: 3.5 | AJ83: 17 | AK83: 4 | AL83: 0
A84: 2013-06-21 | B84: 1 | C84: 30 | D84: 42 | F84: -1 | G84: 44 | H84: 31 | J84: 1 | K84: 30 | L84: 42 | N84: 1 | O84: 44 | P84: 30 | R84: -1 | S84: 47 | T84: 27 | V84: -1 | W84: 33 | X84: 40 | AA84: -12 | AB84: 13 | AC84: -12 | AD84: 14 | AE84: 20 | AF84: -7 | AH84: 16 | AI84: 3.5 | AJ84: 16 | AK84: 3 | AL84: 0
A85: 2013-06-22 | B85: -1 | C85: 30 | D85: 43 | F85: -1 | G85: 44 | H85: 32 | J85: 1 | K85: 31 | L85: 42 | N85: 1 | O85: 45 | P85: 30 | R85: -1 | S85: 47 | T85: 28 | V85: -1 | W85: 33 | X85: 41 | AA85: -13 | AB85: 12 | AC85: -11 | AD85: 15 | AE85: 19 | AF85: -8 | AH85: 16 | AI85: 3.5 | AJ85: 15 | AK85: 2 | AL85: 0
A86: 2013-06-23 | B86: 1 | C86: 31 | D86: 43 | F86: 1 | G86: =G85+IF(F86>0,F86,0) -> 45 | H86: =H85-IF(F86<0,F86,0) -> 32 | J86: -1 | K86: 31 | L86: 43 | N86: 1 | O86: 46 | P86: 30 | R86: -1 | S86: 47 | T86: 29 | V86: 1 | W86: 34 | X86: 41 | AA86: -12 | AB86: 13 | AC86: -12 | AD86: 16 | AE86: 18 | AF86: -7 | AH86: 15 | AI86: 2.5 | AJ86: 15 | AK86: 1 | AL86: 0
A87: 2013-06-24 | C87: 31 | D87: 43 | G87: 45 | H87: 32 | K87: 31 | L87: 43 | O87: 46 | P87: 30 | S87: 47 | T87: 29 | W87: 34 | X87: 41 | AA87: -12 | AB87: 13 | AC87: -12 | AD87: 16 | AE87: 18 | AF87: -7 | AH87: 15 | AI87: 2.5 | AJ87: 15 | AK87: 1 | AL87: 0
A88: 2013-06-25 | B88: -1 | C88: 31 | D88: 44 | F88: -1 | G88: 45 | H88: 33 | J88: 1 | K88: 32 | L88: 43 | N88: 1 | O88: =O87+IF(N88>0,N88,0) -> 47 | P88: =P87-IF(N88<0,N88,0) -> 30 | R88: 1 | S88: =S87+IF(R88>0,R88,0) -> 48 | T88: =T87-IF(R88<0,R88,0) -> 29 | V88: -1 | W88: 34 | X88: 42 | AA88: -13 | AB88: 12 | AC88: -11 | AD88: 17 | AE88: 19 | AF88: -8 | AH88: 16 | AI88: 3.5 | AJ88: 15 | AK88: 1 | AL88: 0
A89: 2013-06-26 | B89: 1 | C89: 32 | D89: 44 | F89: -1 | G89: 45 | H89: 34 | J89: -1 | K89: 32 | L89: 44 | N89: 1 | O89: 48 | P89: 30 | R89: -1 | S89: 48 | T89: 30 | V89: 1 | W89: 35 | X89: 42 | AA89: -12 | AB89: 11 | AC89: -12 | AD89: 18 | AE89: 18 | AF89: -7 | AH89: 15 | AI89: 3.5 | AJ89: 15 | AK89: 0 | AL89: 0
A90: 2013-06-27 | B90: 1 | C90: 33 | D90: 44 | G90: 45 | H90: 34 | J90: -1 | K90: 32 | L90: 45 | O90: 48 | P90: 30 | S90: 48 | T90: 30 | V90: 1 | W90: 36 | X90: 42 | AA90: -11 | AB90: 11 | AC90: -13 | AD90: 18 | AE90: 18 | AF90: -6 | AH90: 14.5 | AI90: 3.5 | AJ90: 15.5 | AK90: 0 | AL90: 0
A91: 2013-06-28 | B91: -1 | C91: 33 | D91: 45 | F91: -1 | G91: 45 | H91: 35 | J91: -1 | K91: 32 | L91: 46 | N91: 1 | O91: 49 | P91: 30 | R91: -1 | S91: 48 | T91: 31 | V91: 1 | W91: 37 | X91: 42 | AA91: -12 | AB91: 10 | AC91: -14 | AD91: 19 | AE91: 17 | AF91: -5 | AH91: 15.5 | AI91: 4.5 | AJ91: 16.5 | AK91: 0 | AL91: 1
A92: 2013-06-29 | B92: 1 | C92: 34 | D92: 45 | F92: 1 | G92: 46 | H92: 35 | J92: -1 | K92: 32 | L92: 47 | N92: 1 | O92: 50 | P92: 30 | R92: 1 | S92: 49 | T92: 31 | V92: 1 | W92: 38 | X92: 42 | AA92: -11 | AB92: 11 | AC92: -15 | AD92: 20 | AE92: 18 | AF92: -4 | AH92: 15.5 | AI92: 4.5 | AJ92: 17.5 | AK92: 0 | AL92: 1
A93: 2013-06-30 | B93: 1 | C93: 35 | D93: 45 | F93: -1 | G93: 46 | H93: 36 | J93: -1 | K93: 32 | L93: 48 | N93: 1 | O93: 51 | P93: 30 | R93: -1 | S93: 49 | T93: 32 | V93: -1 | W93: 38 | X93: 43 | AA93: -10 | AB93: 10 | AC93: -16 | AD93: 21 | AE93: 17 | AF93: -5 | AH93: 15.5 | AI93: 5.5 | AJ93: 18.5 | AK93: 0 | AL93: 2
A94: 2013-07-01 | C94: 35 | D94: 45 | F94: 1 | G94: 47 | H94: 36 | J94: -1 | K94: 32 | L94: 49 | O94: 51 | P94: 30 | S94: 49 | T94: 32 | V94: -1 | W94: 38 | X94: 44 | AA94: -10 | AB94: 11 | AC94: -17 | AD94: 21 | AE94: 17 | AF94: -6 | AH94: 15.5 | AI94: 5 | AJ94: 19 | AK94: 0 | AL94: 2
A95: 2013-07-02 | B95: -1 | C95: 35 | D95: 46 | F95: 1 | G95: 48 | H95: 36 | J95: 1 | K95: 33 | L95: 49 | N95: -1 | O95: 51 | P95: 31 | R95: -1 | S95: 49 | T95: 33 | V95: 1 | W95: 39 | X95: 44 | AA95: -11 | AB95: 12 | AC95: -16 | AD95: 20 | AE95: 16 | AF95: -5 | AH95: 15.5 | AI95: 4 | AJ95: 18 | AK95: 0 | AL95: 2
A96: 2013-07-03 | B96: 1 | C96: 36 | D96: 46 | F96: 1 | G96: 49 | H96: 36 | J96: 1 | K96: 34 | L96: 49 | N96: 1 | O96: 52 | P96: 31 | R96: 1 | S96: 50 | T96: 33 | V96: -1 | W96: 39 | X96: 45 | AA96: -10 | AB96: 13 | AC96: -15 | AD96: 21 | AE96: 17 | AF96: -6 | AH96: 15.5 | AI96: 4 | AJ96: 18 | AK96: 0 | AL96: 2
A97: 2013-07-04 | B97: -1 | C97: 36 | D97: 47 | G97: 49 | H97: 36 | J97: -1 | K97: 34 | L97: 50 | N97: -1 | O97: 52 | P97: 32 | R97: -1 | S97: 50 | T97: 34 | V97: 1 | W97: 40 | X97: 45 | AA97: -11 | AB97: 13 | AC97: -16 | AD97: 20 | AE97: 16 | AF97: -5 | AH97: 15.5 | AI97: 3.5 | AJ97: 18 | AK97: 0 | AL97: 2
A98: 2013-07-05 | B98: -1 | C98: 36 | D98: 48 | F98: -1 | G98: 49 | H98: 37 | J98: -1 | K98: 34 | L98: 51 | N98: 1 | O98: 53 | P98: 32 | R98: 1 | S98: 51 | T98: 34 | W98: 40 | X98: 45 | AA98: -12 | AB98: 12 | AC98: -17 | AD98: 21 | AE98: 17 | AF98: -5 | AH98: 16.5 | AI98: 4.5 | AJ98: 19 | AK98: 0 | AL98: 2
A99: 2013-07-06 | B99: 1 | C99: 37 | D99: 48 | F99: 1 | G99: 50 | H99: 37 | J99: 1 | K99: 35 | L99: 51 | N99: -1 | O99: 53 | P99: 33 | R99: 1 | S99: 52 | T99: 34 | W99: 40 | X99: 45 | AA99: =C99-D99 -> -11 | AB99: =G99-H99 -> 13 | AC99: =K99-L99 -> -16 | AD99: =O99-P99 -> 20 | AE99: =S99-T99 -> 18 | AF99: =W99-X99 -> -5 | AH99: 15.5 | AI99: 3.5 | AJ99: 18 | AK99: 0 | AL99: 1
A100: 2013-07-07 | B100: 1 | C100: =C99+IF(B100>0,B100,0) -> 38 | D100: =D99-IF(B100<0,B100,0) -> 48 | F100: -1 | G100: 50 | H100: 38 | J100: -1 | K100: 35 | L100: 52 | N100: -1 | O100: 53 | P100: 34 | R100: 1 | S100: =S99+IF(R100>0,R100,0) -> 53 | T100: =T99-IF(R100<0,R100,0) -> 34 | W100: 40 | X100: 45 | AA100: -10 | AB100: 12 | AC100: -17 | AD100: 19 | AE100: 19 | AF100: -5 | AH100: 14.5 | AI100: 3.5 | AJ100: 18 | AK100: 0 | AL100: 0
A101: 2013-07-08 | B101: 1 | C101: 39 | D101: 48 | F101: -1 | G101: 50 | H101: 39 | J101: 1 | K101: 36 | L101: 52 | N101: -1 | O101: 53 | P101: 35 | S101: 53 | T101: 34 | W101: 40 | X101: 45 | AA101: -9 | AB101: 11 | AC101: -16 | AD101: 18 | AE101: 19 | AF101: -5 | AH101: 14 | AI101: 4 | AJ101: 17.5 | AK101: 0.5 | AL101: 0
A102: 2013-07-09 | B102: 1 | C102: 40 | D102: 48 | F102: -1 | G102: 50 | H102: 40 | J102: 1 | K102: 37 | L102: 52 | N102: -1 | O102: 53 | P102: 36 | R102: 1 | S102: 54 | T102: 34 | V102: 1 | W102: 41 | X102: 45 | AA102: -8 | AB102: 10 | AC102: -15 | AD102: 17 | AE102: 20 | AF102: -4 | AH102: 14 | AI102: 5 | AJ102: 17.5 | AK102: 1.5 | AL102: 0
A103: 2013-07-10 | B103: -1 | C103: =C102+IF(B103>0,B103,0) -> 40 | D103: =D102-IF(B103<0,B103,0) -> 49 | F103: 1 | G103: =G102+IF(F103>0,F103,0) -> 51 | H103: =H102-IF(F103<0,F103,0) -> 40 | J103: -1 | K103: =K102+IF(J103>0,J103,0) -> 37 | L103: =L102-IF(J103<0,J103,0) -> 53 | N103: 1 | O103: 54 | P103: 36 | R103: 1 | S103: =S102+IF(R103>0,R103,0) -> 55 | T103: =T102-IF(R103<0,R103,0) -> 34 | V103: -1 | W103: =W102+IF(V103>0,V103,0) -> 41 | X103: =X102-IF(V103<0,V103,0) -> 46 | AA103: -9 | AB103: 11 | AC103: -16 | AD103: 18 | AE103: 21 | AF103: -5 | AH103: 15 | AI103: 5 | AJ103: 18.5 | AK103: 1.5 | AL103: 0
A104: 2013-07-11 | B104: 1 | C104: 41 | D104: 49 | F104: -1 | G104: 51 | H104: 41 | J104: -1 | K104: 37 | L104: 54 | O104: 54 | P104: 36 | R104: -1 | S104: 55 | T104: 35 | V104: 1 | W104: 42 | X104: 46 | AA104: -8 | AB104: 10 | AC104: -17 | AD104: 18 | AE104: 20 | AF104: -4 | AH104: 14 | AI104: 5 | AJ104: 18.5 | AK104: 1 | AL104: 0
A105: 2013-07-12 | B105: -1 | C105: 41 | D105: 50 | F105: 1 | G105: 52 | H105: 41 | J105: -1 | K105: 37 | L105: 55 | N105: 1 | O105: 55 | P105: 36 | R105: 1 | S105: 56 | T105: 35 | V105: -1 | W105: 42 | X105: 47 | AA105: -9 | AB105: 11 | AC105: -18 | AD105: 19 | AE105: 21 | AF105: -5 | AH105: 15 | AI105: 5 | AJ105: 19.5 | AK105: 1 | AL105: 0
A106: 2013-07-13 | B106: 1 | C106: 42 | D106: 50 | F106: -1 | G106: 52 | H106: 42 | J106: -1 | K106: 37 | L106: 56 | N106: 1 | O106: 56 | P106: 36 | R106: -1 | S106: 56 | T106: 36 | V106: 1 | W106: 43 | X106: 47 | AA106: -8 | AB106: 10 | AC106: -19 | AD106: 20 | AE106: 20 | AF106: -4 | AH106: 14 | AI106: 5 | AJ106: 19.5 | AK106: 0 | AL106: 0
A107: 2013-07-14 | B107: -1 | C107: 42 | D107: 51 | F107: 1 | G107: 53 | H107: 42 | J107: 1 | K107: 38 | L107: 56 | N107: -1 | O107: 56 | P107: 37 | R107: 1 | S107: 57 | T107: 36 | V107: 1 | W107: 44 | X107: 47 | AA107: -9 | AB107: 11 | AC107: -18 | AD107: 19 | AE107: 21 | AF107: -3 | AH107: 15 | AI107: 5 | AJ107: 19.5 | AK107: 1 | AL107: 0
A108: 2013-07-15 | C108: 42 | D108: 51 | G108: 53 | H108: 42 | K108: 38 | L108: 56 | O108: 56 | P108: 37 | S108: 57 | T108: 36 | W108: 44 | X108: 47 | AA108: -9 | AB108: 11 | AC108: -18 | AD108: 19 | AE108: 21 | AF108: -3 | AH108: 15 | AI108: 5 | AJ108: 19.5 | AK108: 1 | AL108: 0
A109: 2013-07-16 | C109: 42 | D109: 51 | G109: 53 | H109: 42 | K109: 38 | L109: 56 | O109: 56 | P109: 37 | S109: 57 | T109: 36 | V109: -1 | W109: 44 | X109: 48 | AA109: -9 | AB109: 11 | AC109: -18 | AD109: 19 | AE109: 21 | AF109: -4 | AH109: 15 | AI109: 5 | AJ109: 19.5 | AK109: 1 | AL109: 0
A110: 2013-07-17 | C110: 42 | D110: 51 | G110: 53 | H110: 42 | K110: 38 | L110: 56 | O110: =O109+IF(N110>0,N110,0) -> 56 | P110: =P109-IF(N110<0,N110,0) -> 37 | S110: 57 | T110: 36 | V110: -1 | W110: 44 | X110: 49 | AA110: -9 | AB110: 11 | AC110: -18 | AD110: 19 | AE110: 21 | AF110: -5 | AH110: 15 | AI110: 5 | AJ110: 19.5 | AK110: 1 | AL110: 0
A111: 2013-07-18 | C111: 42 | D111: 51 | G111: 53 | H111: 42 | K111: 38 | L111: 56 | O111: 56 | P111: 37 | S111: 57 | T111: 36 | V111: -1 | W111: 44 | X111: 50 | AA111: -9 | AB111: 11 | AC111: -18 | AD111: 19 | AE111: 21 | AF111: -6 | AH111: 15 | AI111: 5 | AJ111: 19.5 | AK111: 1 | AL111: 0
A112: 2013-07-19 | B112: 1 | C112: 43 | D112: 51 | F112: 1 | G112: 54 | H112: 42 | J112: 1 | K112: 39 | L112: 56 | N112: -1 | O112: 56 | P112: 38 | R112: 1 | S112: 58 | T112: 36 | V112: -1 | W112: 44 | X112: 51 | AA112: -8 | AB112: 12 | AC112: -17 | AD112: 18 | AE112: 22 | AF112: -7 | AH112: 15 | AI112: 5 | AJ112: 19.5 | AK112: 2 | AL112: 0
A113: 2013-07-20 | B113: -1 | C113: 43 | D113: 52 | F113: 1 | G113: 55 | H113: 42 | J113: 1 | K113: 40 | L113: 56 | N113: -1 | O113: 56 | P113: 39 | R113: -1 | S113: 58 | T113: 37 | V113: -1 | W113: 44 | X113: 52 | AA113: -9 | AB113: 13 | AC113: -16 | AD113: 17 | AE113: 21 | AF113: -8 | AH113: 15 | AI113: 4 | AJ113: 18.5 | AK113: 2 | AL113: 0
A114: 2013-07-21 | B114: -1 | C114: 43 | D114: 53 | F114: -1 | G114: 55 | H114: 43 | J114: 1 | K114: 41 | L114: 56 | N114: 1 | O114: 57 | P114: 39 | R114: 1 | S114: 59 | T114: 37 | V114: -1 | W114: 44 | X114: 53 | AA114: -10 | AB114: 12 | AC114: -15 | AD114: 18 | AE114: 22 | AF114: -9 | AH114: 16 | AI114: 5 | AJ114: 18.5 | AK114: 2 | AL114: 0
A115: 2013-07-22 | B115: 1 | C115: 44 | D115: 53 | F115: 1 | G115: 56 | H115: 43 | J115: -1 | K115: 41 | L115: 57 | N115: 1 | O115: 58 | P115: 39 | S115: =S114+IF(R115>0,R115,0) -> 59 | T115: =T114-IF(R115<0,R115,0) -> 37 | V115: -1 | W115: 44 | X115: 54 | AA115: -9 | AB115: 13 | AC115: -16 | AD115: 19 | AE115: 22 | AF115: -10 | AH115: 15.5 | AI115: 4.5 | AJ115: 19 | AK115: 1.5 | AL115: 0
A116: 2013-07-23 | B116: -1 | C116: 44 | D116: 54 | F116: 0 | G116: 57 | H116: 44 | J116: -1 | K116: 41 | L116: 58 | N116: 1 | O116: 59 | P116: 39 | R116: 1 | S116: 60 | T116: 37 | V116: 1 | W116: 45 | X116: 54 | AA116: -10 | AB116: 13 | AC116: -17 | AD116: 20 | AE116: 23 | AF116: -9 | AH116: 16.5 | AI116: 5 | AJ116: 20 | AK116: 1.5 | AL116: 0
A117: 2013-07-24 | B117: 1 | C117: 45 | D117: 54 | F117: 1 | G117: 58 | H117: 44 | J117: 1 | K117: 42 | L117: 58 | N117: 1 | O117: 60 | P117: 39 | R117: 1 | S117: 61 | T117: 37 | V117: -1 | W117: 45 | X117: 55 | AA117: -9 | AB117: 14 | AC117: -16 | AD117: 21 | AE117: 24 | AF117: -10 | AH117: 16.5 | AI117: 5 | AJ117: 20 | AK117: 1.5 | AL117: 0
A118: 2013-07-25 | B118: -1 | C118: 45 | D118: 55 | F118: 1 | G118: 59 | H118: 44 | J118: -1 | K118: 42 | L118: 59 | N118: -1 | O118: 60 | P118: 40 | R118: 1 | S118: 62 | T118: 37 | V118: -1 | W118: 45 | X118: 56 | AA118: -10 | AB118: 15 | AC118: -17 | AD118: 20 | AE118: 25 | AF118: -11 | AH118: 17.5 | AI118: 5 | AJ118: 21 | AK118: 2.5 | AL118: 0
A119: 2013-07-26 | B119: 1 | C119: 46 | D119: 55 | F119: -1 | G119: 59 | H119: 45 | J119: -1 | K119: 42 | L119: 60 | N119: -1 | O119: 60 | P119: 41 | R119: -1 | S119: 62 | T119: 38 | V119: 1 | W119: 46 | X119: 56 | AA119: -9 | AB119: 14 | AC119: -18 | AD119: 19 | AE119: 24 | AF119: -10 | AH119: 16.5 | AI119: 5 | AJ119: 21 | AK119: 2.5 | AL119: 0
A120: 2013-07-27 | B120: 1 | C120: 47 | D120: 55 | F120: -1 | G120: 59 | H120: 46 | J120: 1 | K120: 43 | L120: 60 | N120: 1 | O120: 61 | P120: 41 | R120: -1 | S120: 62 | T120: 39 | V120: 1 | W120: 47 | X120: 56 | AA120: -8 | AB120: 13 | AC120: -17 | AD120: 20 | AE120: 23 | AF120: -9 | AH120: 15.5 | AI120: 5 | AJ120: 20 | AK120: 1.5 | AL120: 0
A121: 2013-07-28 | B121: 1 | C121: 48 | D121: 55 | F121: -1 | G121: 59 | H121: 47 | J121: -1 | K121: 43 | L121: 61 | N121: -1 | O121: 61 | P121: 42 | R121: -1 | S121: 62 | T121: 40 | V121: 1 | W121: 48 | X121: 56 | AA121: -7 | AB121: 12 | AC121: -18 | AD121: 19 | AE121: 22 | AF121: -8 | AH121: 14.5 | AI121: 5 | AJ121: 20 | AK121: 1.5 | AL121: 0
A122: 2013-07-29 | B122: -1 | C122: 48 | D122: 56 | F122: -1 | G122: 59 | H122: 48 | J122: 1 | K122: 44 | L122: 61 | N122: 1 | O122: 62 | P122: 42 | R122: -1 | S122: 62 | T122: 41 | W122: 48 | X122: 56 | AA122: -8 | AB122: 11 | AC122: -17 | AD122: 20 | AE122: 21 | AF122: -8 | AH122: 14.5 | AI122: 5 | AJ122: 19 | AK122: 0.5 | AL122: 0
A123: 2013-07-30 | B123: -2 | C123: 48 | D123: 58 | F123: -1 | G123: 59 | H123: 49 | J123: 2 | K123: 46 | L123: 61 | N123: 2 | O123: 64 | P123: 42 | R123: -2 | S123: 62 | T123: 43 | V123: -1 | W123: 48 | X123: 57 | AA123: -10 | AB123: 10 | AC123: -15 | AD123: 22 | AE123: 19 | AF123: -9 | AH123: 16 | AI123: 6 | AJ123: 18.5 | AK123: 0 | AL123: 1.5
A124: 2013-07-31 | B124: 1 | C124: 49 | D124: 58 | F124: 1 | G124: 60 | H124: 49 | J124: -1 | K124: 46 | L124: 62 | N124: 1 | O124: 65 | P124: 42 | R124: -1 | S124: 62 | T124: 44 | V124: -1 | W124: 48 | X124: 58 | AA124: -9 | AB124: 11 | AC124: -16 | AD124: 23 | AE124: 18 | AF124: -10 | AH124: 16 | AI124: 6 | AJ124: 19.5 | AK124: 0 | AL124: 2.5
A125: 2013-08-01 | B125: -1 | C125: 49 | D125: 59 | G125: 60 | H125: 49 | K125: 46 | L125: 62 | N125: -1 | O125: 65 | P125: 43 | R125: 1 | S125: 63 | T125: 44 | V125: -1 | W125: 48 | X125: 59 | AA125: -10 | AB125: 11 | AC125: -16 | AD125: 22 | AE125: 19 | AF125: -11 | AH125: 16 | AI125: 5.5 | AJ125: 19 | AK125: 0 | AL125: 1.5
A126: 2013-08-02 | B126: -1 | C126: 49 | D126: 60 | F126: -1 | G126: 60 | H126: 50 | J126: -1 | K126: 46 | L126: 63 | N126: -1 | O126: 65 | P126: 44 | R126: 1 | S126: 64 | T126: 44 | V126: 1 | W126: 49 | X126: 59 | AA126: -11 | AB126: 10 | AC126: -17 | AD126: 21 | AE126: 20 | AF126: -10 | AH126: 16 | AI126: 5.5 | AJ126: 19 | AK126: 0 | AL126: 0.5
A127: 2013-08-03 | B127: -1 | C127: 49 | D127: 61 | F127: 1 | G127: 61 | H127: 50 | J127: -1 | K127: 46 | L127: 64 | N127: 1 | O127: 66 | P127: 44 | R127: -1 | S127: 64 | T127: 45 | V127: 1 | W127: 50 | X127: 59 | AA127: -12 | AB127: 11 | AC127: -18 | AD127: 22 | AE127: 19 | AF127: -9 | AH127: 17 | AI127: 5.5 | AJ127: 20 | AK127: 0 | AL127: 1.5
A128: 2013-08-04 | B128: -1 | C128: 49 | D128: 62 | F128: -1 | G128: 61 | H128: 51 | J128: 1 | K128: 47 | L128: 64 | N128: 1 | O128: 67 | P128: 44 | R128: 1 | S128: 65 | T128: 45 | V128: 1 | W128: 51 | X128: 59 | AA128: -13 | AB128: 10 | AC128: -17 | AD128: 23 | AE128: 20 | AF128: -8 | AH128: 18 | AI128: 6.5 | AJ128: 20 | AK128: 0 | AL128: 1.5
A129: 2013-08-05 | C129: 49 | D129: 62 | G129: 61 | H129: 51 | J129: -1 | K129: 47 | L129: 65 | O129: 67 | P129: 44 | R129: -1 | S129: 65 | T129: 46 | W129: 51 | X129: 59 | AA129: -13 | AB129: 10 | AC129: -18 | AD129: 23 | AE129: 19 | AF129: -8 | AH129: 18 | AI129: 6.5 | AJ129: 20.5 | AK129: 0 | AL129: 2
A130: 2013-08-06 | B130: -1 | C130: 49 | D130: 63 | F130: 1 | G130: 62 | H130: 51 | J130: 1 | K130: 48 | L130: 65 | N130: 1 | O130: 68 | P130: 44 | R130: 1 | S130: 66 | T130: 46 | V130: -1 | W130: 51 | X130: 60 | AA130: -14 | AB130: 11 | AC130: -17 | AD130: 24 | AE130: 20 | AF130: -9 | AH130: 19 | AI130: 6.5 | AJ130: 20.5 | AK130: 0 | AL130: 2
A131: 2013-08-07 | B131: 1 | C131: 50 | D131: 63 | F131: 1 | G131: 63 | H131: 51 | J131: 1 | K131: 49 | L131: 65 | N131: 1 | O131: 69 | P131: 44 | R131: -1 | S131: 66 | T131: 47 | V131: -1 | W131: 51 | X131: 61 | AA131: =C131-D131 -> -13 | AB131: =G131-H131 -> 12 | AC131: =K131-L131 -> -16 | AD131: =O131-P131 -> 25 | AE131: =S131-T131 -> 19 | AF131: =W131-X131 -> -10 | AH131: 19 | AI131: 6.5 | AJ131: 20.5 | AK131: 0 | AL131: 3
A132: 2013-08-08 | B132: -1 | C132: 50 | D132: 64 | G132: 63 | H132: 51 | J132: -1 | K132: 49 | L132: 66 | N132: 1 | O132: 70 | P132: 44 | R132: -1 | S132: 66 | T132: 48 | V132: 1 | W132: 52 | X132: 61 | AA132: -14 | AB132: 12 | AC132: -17 | AD132: 26 | AE132: 18 | AF132: -9 | AH132: =(MAX($AA132:$AE132)-AA132)/2 -> 20 | AI132: =(MAX($AA132:$AE132)-AB132)/2 -> 7 | AJ132: =(MAX($AA132:$AE132)-AC132)/2 -> 21.5 | AK132: =(MAX($AA132:$AE132)-AD132)/2 -> 0 | AL132: =(MAX($AA132:$AE132)-AE132)/2 -> 4
A133: 2013-08-09 | B133: 1 | C133: 51 | D133: 64 | F133: 1 | G133: 64 | H133: 51 | J133: 1 | K133: 50 | L133: 66 | N133: -1 | O133: 70 | P133: 45 | R133: -1 | S133: 66 | T133: 49 | V133: -1 | W133: 52 | X133: 62 | AA133: -13 | AB133: 13 | AC133: -16 | AD133: 25 | AE133: 17 | AF133: -10 | AH133: 19 | AI133: 6 | AJ133: 20.5 | AK133: 0 | AL133: 4
A134: 2013-08-10 | B134: 1 | C134: 52 | D134: 64 | F134: -1 | G134: 64 | H134: 52 | J134: 1 | K134: 51 | L134: 66 | N134: -1 | O134: 70 | P134: 46 | R134: -1 | S134: 66 | T134: 50 | V134: -1 | W134: 52 | X134: 63 | AA134: -12 | AB134: 12 | AC134: -15 | AD134: 24 | AE134: 16 | AF134: -11 | AH134: 18 | AI134: 6 | AJ134: 19.5 | AK134: 0 | AL134: 4
A135: 2013-08-11 | B135: -1 | C135: =C134+IF(B135>0,B135,0) -> 52 | D135: =D134-IF(B135<0,B135,0) -> 65 | F135: 1 | G135: =G134+IF(F135>0,F135,0) -> 65 | H135: =H134-IF(F135<0,F135,0) -> 52 | J135: -1 | K135: =K134+IF(J135>0,J135,0) -> 51 | L135: =L134-IF(J135<0,J135,0) -> 67 | N135: -1 | O135: 70 | P135: 47 | R135: 1 | S135: =S134+IF(R135>0,R135,0) -> 67 | T135: =T134-IF(R135<0,R135,0) -> 50 | V135: -1 | W135: =W134+IF(V135>0,V135,0) -> 52 | X135: =X134-IF(V135<0,V135,0) -> 64 | AA135: -13 | AB135: 13 | AC135: -16 | AD135: 23 | AE135: 17 | AF135: -12 | AH135: 18 | AI135: 5 | AJ135: 19.5 | AK135: 0 | AL135: 3
A136: 2013-08-12 | B136: -1 | C136: 52 | D136: 66 | F136: 1 | G136: 66 | H136: 52 | K136: 51 | L136: 67 | O136: 70 | P136: 47 | S136: 67 | T136: 50 | V136: 1 | W136: 53 | X136: 64 | AA136: -14 | AB136: 14 | AC136: -16 | AD136: 23 | AE136: 17 | AF136: -11 | AH136: 18.5 | AI136: 4.5 | AJ136: 19.5 | AK136: 0 | AL136: 3
A137: 2013-08-13 | B137: -1 | C137: 52 | D137: 67 | F137: 1 | G137: 67 | H137: 52 | J137: 1 | K137: 52 | L137: 67 | N137: -1 | O137: 70 | P137: 48 | R137: 1 | S137: 68 | T137: 50 | V137: 1 | W137: 54 | X137: 64 | AA137: -15 | AB137: 15 | AC137: -15 | AD137: 22 | AE137: 18 | AF137: -10 | AH137: 18.5 | AI137: 3.5 | AJ137: 18.5 | AK137: 0 | AL137: 2
A138: 2013-08-14 | B138: -1 | C138: =C137+IF(B138>0,B138,0) -> 52 | D138: =D137-IF(B138<0,B138,0) -> 68 | F138: 1 | G138: =G137+IF(F138>0,F138,0) -> 68 | H138: =H137-IF(F138<0,F138,0) -> 52 | J138: -1 | K138: 52 | L138: 68 | N138: 1 | O138: 71 | P138: 48 | R138: -1 | S138: 68 | T138: 51 | V138: -1 | W138: 54 | X138: 65 | AA138: -16 | AB138: 16 | AC138: -16 | AD138: 23 | AE138: 17 | AF138: -11 | AH138: 19.5 | AI138: 3.5 | AJ138: 19.5 | AK138: 0 | AL138: 3
A139: 2013-08-15 | C139: 52 | D139: 68 | F139: 1 | G139: 69 | H139: 52 | J139: -1 | K139: 52 | L139: 69 | N139: -1 | O139: 71 | P139: 49 | R139: 1 | S139: 69 | T139: 51 | V139: -1 | W139: 54 | X139: 66 | AA139: -16 | AB139: 17 | AC139: -17 | AD139: 22 | AE139: 18 | AF139: -12 | AH139: 19 | AI139: 2.5 | AJ139: 19.5 | AK139: 0 | AL139: 2
A140: 2013-08-16 | B140: 1 | C140: 53 | D140: 68 | F140: -1 | G140: 69 | H140: 53 | J140: 1 | K140: 53 | L140: 69 | N140: 1 | O140: 72 | P140: 49 | R140: -1 | S140: 69 | T140: 52 | V140: 1 | W140: 55 | X140: 66 | AA140: -15 | AB140: 16 | AC140: -16 | AD140: 23 | AE140: 17 | AF140: -11 | AH140: 19 | AI140: 3.5 | AJ140: 19.5 | AK140: 0 | AL140: 3
A141: 2013-08-17 | B141: -1 | C141: 53 | D141: 69 | F141: -1 | G141: 69 | H141: 54 | J141: 1 | K141: 54 | L141: 69 | N141: -1 | O141: 72 | P141: 50 | R141: 1 | S141: 70 | T141: 52 | V141: 1 | W141: 56 | X141: 66 | AA141: -16 | AB141: 15 | AC141: -15 | AD141: 22 | AE141: 18 | AF141: -10 | AH141: 19 | AI141: 3.5 | AJ141: 18.5 | AK141: 0 | AL141: 2
A142: 2013-08-18 | B142: -1 | C142: 53 | D142: 70 | F142: 1 | G142: 70 | H142: 54 | J142: -1 | K142: 54 | L142: 70 | N142: -1 | O142: =O141+IF(N142>0,N142,0) -> 72 | P142: =P141-IF(N142<0,N142,0) -> 51 | R142: 1 | S142: 71 | T142: 52 | V142: 1 | W142: 57 | X142: 66 | AA142: -17 | AB142: 16 | AC142: -16 | AD142: 21 | AE142: 19 | AF142: -9 | AH142: 19 | AI142: 2.5 | AJ142: 18.5 | AK142: 0 | AL142: 1
A143: 2013-08-19 | B143: 1 | C143: 54 | D143: 70 | F143: 1 | G143: 71 | H143: 54 | J143: -1 | K143: 54 | L143: 71 | N143: 1 | O143: 73 | P143: 51 | R143: 1 | S143: 72 | T143: 52 | W143: 57 | X143: 66 | AA143: -16 | AB143: 17 | AC143: -17 | AD143: 22 | AE143: 20 | AF143: -9 | AH143: 19 | AI143: 2.5 | AJ143: 19.5 | AK143: 0 | AL143: 1
A144: 2013-08-20 | B144: -1 | C144: 54 | D144: 71 | F144: -1 | G144: 71 | H144: 55 | J144: 1 | K144: 55 | L144: 71 | N144: 1 | O144: 74 | P144: 51 | R144: -1 | S144: 72 | T144: 53 | V144: 1 | W144: 58 | X144: 66 | AA144: -17 | AB144: 16 | AC144: -16 | AD144: 23 | AE144: 19 | AF144: -8 | AH144: 20 | AI144: 3.5 | AJ144: 19.5 | AK144: 0 | AL144: 2
A145: 2013-08-21 | B145: -1 | C145: 54 | D145: 72 | F145: 1 | G145: 72 | H145: 55 | J145: -1 | K145: 55 | L145: 72 | N145: -1 | O145: 74 | P145: 52 | R145: 1 | S145: 73 | T145: 53 | V145: -1 | W145: 58 | X145: 67 | AA145: -18 | AB145: 17 | AC145: -17 | AD145: 22 | AE145: 20 | AF145: -9 | AH145: 20 | AI145: 2.5 | AJ145: 19.5 | AK145: 0 | AL145: 1
A146: 2013-08-22 | B146: -1 | C146: 54 | D146: 73 | F146: 1 | G146: 73 | H146: 55 | K146: 55 | L146: 72 | N146: 1 | O146: 75 | P146: 52 | R146: 1 | S146: 74 | T146: 53 | V146: 1 | W146: 59 | X146: 67 | AA146: -19 | AB146: 18 | AC146: -17 | AD146: 23 | AE146: 21 | AF146: -8 | AH146: 21 | AI146: 2.5 | AJ146: 20 | AK146: 0 | AL146: 1
A147: 2013-08-23 | B147: -1 | C147: 54 | D147: 74 | F147: -1 | G147: 73 | H147: 56 | J147: 1 | K147: 56 | L147: 72 | N147: 1 | O147: =O146+IF(N147>0,N147,0) -> 76 | P147: =P146-IF(N147<0,N147,0) -> 52 | R147: 1 | S147: 75 | T147: 53 | V147: 1 | W147: =W146+IF(V147>0,V147,0) -> 60 | X147: =X146-IF(V147<0,V147,0) -> 67 | AA147: -20 | AB147: 17 | AC147: -16 | AD147: 24 | AE147: 22 | AF147: -7 | AH147: 22 | AI147: 3.5 | AJ147: 20 | AK147: 0 | AL147: 1
A148: 2013-08-24 | B148: 1 | C148: 55 | D148: 74 | F148: 1 | G148: 74 | H148: 56 | J148: -1 | K148: 56 | L148: 73 | N148: -1 | O148: 76 | P148: 53 | R148: 1 | S148: 76 | T148: 53 | V148: 1 | W148: 61 | X148: 67 | AA148: -19 | AB148: 18 | AC148: -17 | AD148: 23 | AE148: 23 | AF148: -6 | AH148: 21 | AI148: 2.5 | AJ148: 20 | AK148: 0 | AL148: 0
A149: 2013-08-25 | B149: -1 | C149: 55 | D149: 75 | F149: -1 | G149: 74 | H149: 57 | J149: 1 | K149: 57 | L149: 73 | N149: -1 | O149: 76 | P149: 54 | R149: -1 | S149: 76 | T149: 54 | V149: 1 | W149: 62 | X149: 67 | AA149: -20 | AB149: 17 | AC149: -16 | AD149: 22 | AE149: 22 | AF149: -5 | AH149: 21 | AI149: 2.5 | AJ149: 19 | AK149: 0 | AL149: 0
A150: 2013-08-26 | B150: -1 | C150: 55 | D150: 76 | F150: -1 | G150: 74 | H150: 58 | K150: 57 | L150: 73 | O150: 76 | P150: 54 | R150: 1 | S150: 77 | T150: 54 | V150: -1 | W150: 62 | X150: 68 | AA150: -21 | AB150: 16 | AC150: -16 | AD150: 22 | AE150: 23 | AF150: -6 | AH150: 22 | AI150: 3.5 | AJ150: 19.5 | AK150: 0.5 | AL150: 0
A151: 2013-08-27 | B151: 1 | C151: 56 | D151: 76 | F151: -1 | G151: 74 | H151: 59 | J151: 1 | K151: 58 | L151: 73 | N151: -1 | O151: 76 | P151: 55 | R151: 1 | S151: 78 | T151: 54 | V151: 1 | W151: 63 | X151: 68 | AA151: -20 | AB151: 15 | AC151: -15 | AD151: 21 | AE151: 24 | AF151: -5 | AH151: 22 | AI151: 4.5 | AJ151: 19.5 | AK151: 1.5 | AL151: 0
A152: 2013-08-28 | B152: -1 | C152: 56 | D152: 77 | F152: 1 | G152: 75 | H152: 59 | J152: -1 | K152: 58 | L152: 74 | N152: 1 | O152: 77 | P152: 55 | R152: -1 | S152: 78 | T152: 55 | V152: 1 | W152: 64 | X152: 68 | AA152: -21 | AB152: 16 | AC152: -16 | AD152: 22 | AE152: 23 | AF152: -4 | AH152: 22 | AI152: 3.5 | AJ152: 19.5 | AK152: 0.5 | AL152: 0
A153: 2013-08-29 | C153: 56 | D153: 77 | G153: 75 | H153: 59 | J153: 1 | K153: 59 | L153: 74 | N153: -1 | O153: 77 | P153: 56 | S153: 78 | T153: 55 | V153: 1 | W153: 65 | X153: 68 | AA153: -21 | AB153: 16 | AC153: -15 | AD153: 21 | AE153: 23 | AF153: -3 | AH153: 22 | AI153: 3.5 | AJ153: 19 | AK153: 1 | AL153: 0
A154: 2013-08-30 | B154: -1 | C154: 56 | D154: 78 | F154: -1 | G154: 75 | H154: 60 | J154: -1 | K154: 59 | L154: 75 | N154: 1 | O154: 78 | P154: 56 | R154: -1 | S154: 78 | T154: 56 | V154: -1 | W154: 65 | X154: 69 | AA154: -22 | AB154: 15 | AC154: -16 | AD154: 22 | AE154: 22 | AF154: -4 | AH154: 22 | AI154: 3.5 | AJ154: 19 | AK154: 0 | AL154: 0
A155: 2013-08-31 | B155: 1 | C155: =C154+IF(B155>0,B155,0) -> 57 | D155: =D154-IF(B155<0,B155,0) -> 78 | F155: 1 | G155: 76 | H155: 60 | J155: -1 | K155: 59 | L155: 76 | N155: 1 | O155: 79 | P155: 56 | R155: -1 | S155: 78 | T155: 57 | V155: 1 | W155: 66 | X155: 69 | AA155: -21 | AB155: 16 | AC155: -17 | AD155: 23 | AE155: 21 | AF155: -3 | AH155: 22 | AI155: 3.5 | AJ155: 20 | AK155: 0 | AL155: 1
A156: 2013-09-01 | B156: 1 | C156: 58 | D156: 78 | F156: -1 | G156: 76 | H156: 61 | J156: -1 | K156: 59 | L156: 77 | N156: -1 | O156: 79 | P156: 57 | R156: 1 | S156: 79 | T156: 57 | V156: 1 | W156: 67 | X156: 69 | AA156: -20 | AB156: 15 | AC156: -18 | AD156: 22 | AE156: 22 | AF156: -2 | AH156: 21 | AI156: 3.5 | AJ156: 20 | AK156: 0 | AL156: 0
A157: 2013-09-02 | B157: -1 | C157: 58 | D157: 79 | F157: 1 | G157: =G156+IF(F157>0,F157,0) -> 77 | H157: =H156-IF(F157<0,F157,0) -> 61 | J157: -1 | K157: 59 | L157: 78 | N157: 1 | O157: 80 | P157: 57 | R157: -1 | S157: 79 | T157: 58 | V157: -1 | W157: 67 | X157: 70 | AA157: -21 | AB157: 16 | AC157: -19 | AD157: 23 | AE157: 21 | AF157: -3 | AH157: 22 | AI157: 3.5 | AJ157: 21 | AK157: 0 | AL157: 1
A158: 2013-09-03 | B158: -1 | C158: 58 | D158: 80 | F158: 1 | G158: 78 | H158: 61 | J158: -1 | K158: 59 | L158: 79 | N158: 1 | O158: 81 | P158: 57 | R158: -1 | S158: 79 | T158: 59 | V158: 1 | W158: 68 | X158: 70 | AA158: -22 | AB158: 17 | AC158: -20 | AD158: 24 | AE158: 20 | AF158: -2 | AH158: 23 | AI158: 3.5 | AJ158: 22 | AK158: 0 | AL158: 2
A159: 2013-09-04 | B159: 1 | C159: 59 | D159: 80 | F159: -1 | G159: 78 | H159: 62 | J159: 1 | K159: 60 | L159: 79 | N159: -1 | O159: 81 | P159: 58 | R159: 1 | S159: 80 | T159: 59 | V159: 1 | W159: 69 | X159: 70 | AA159: -21 | AB159: 16 | AC159: -19 | AD159: 23 | AE159: 21 | AF159: -1 | AH159: 22 | AI159: 3.5 | AJ159: 21 | AK159: 0 | AL159: 1
A160: 2013-09-05 | C160: 59 | D160: 80 | F160: 1 | G160: 79 | H160: 62 | K160: 60 | L160: 79 | O160: 81 | P160: 58 | R160: -1 | S160: 80 | T160: 60 | V160: -1 | W160: 69 | X160: 71 | AA160: -21 | AB160: 17 | AC160: -19 | AD160: 23 | AE160: 20 | AF160: -2 | AH160: 22 | AI160: 3 | AJ160: 21 | AK160: 0 | AL160: 1.5
A161: 2013-09-06 | B161: 1 | C161: 60 | D161: 80 | F161: 1 | G161: 80 | H161: 62 | J161: -1 | K161: 60 | L161: 80 | N161: -1 | O161: 81 | P161: 59 | R161: 1 | S161: 81 | T161: 60 | V161: 1 | W161: 70 | X161: 71 | AA161: -20 | AB161: 18 | AC161: -20 | AD161: 22 | AE161: 21 | AF161: -1 | AH161: 21 | AI161: 2 | AJ161: 21 | AK161: 0 | AL161: 0.5
A162: 2013-09-07 | B162: -1 | C162: 60 | D162: 81 | F162: 1 | G162: 81 | H162: 62 | J162: 1 | K162: 61 | L162: 80 | N162: -1 | O162: 81 | P162: 60 | R162: 1 | S162: 82 | T162: 60 | V162: 1 | W162: 71 | X162: 71 | AA162: -21 | AB162: 19 | AC162: -19 | AD162: 21 | AE162: 22 | AF162: 0 | AH162: 21.5 | AI162: 1.5 | AJ162: 20.5 | AK162: 0.5 | AL162: 0
A163: 2013-09-08 | B163: -1 | C163: 60 | D163: 82 | F163: 1 | G163: 82 | H163: 62 | J163: 1 | K163: 62 | L163: 80 | N163: -1 | O163: 81 | P163: 61 | R163: 1 | S163: 83 | T163: 60 | V163: 1 | W163: 72 | X163: 71 | AA163: =C163-D163 -> -22 | AB163: =G163-H163 -> 20 | AC163: =K163-L163 -> -18 | AD163: =O163-P163 -> 20 | AE163: =S163-T163 -> 23 | AF163: =W163-X163 -> 1 | AH163: 22.5 | AI163: 1.5 | AJ163: 20.5 | AK163: 1.5 | AL163: 0
A164: 2013-09-09 | B164: 1 | C164: 61 | D164: 82 | F164: -1 | G164: 82 | H164: 63 | K164: 62 | L164: 80 | N164: 1 | O164: 82 | P164: 61 | S164: 83 | T164: 60 | W164: 72 | X164: 71 | AA164: -21 | AB164: 19 | AC164: -18 | AD164: 21 | AE164: 23 | AF164: 1 | AH164: 22 | AI164: 2 | AJ164: 20.5 | AK164: 1 | AL164: 0
A165: 2013-09-10 | B165: 1 | C165: 62 | D165: 82 | F165: -1 | G165: 82 | H165: 64 | J165: -1 | K165: =K164+IF(J165>0,J165,0) -> 62 | L165: =L164-IF(J165<0,J165,0) -> 81 | N165: 1 | O165: =O164+IF(N165>0,N165,0) -> 83 | P165: =P164-IF(N165<0,N165,0) -> 61 | R165: 1 | S165: 84 | T165: 60 | V165: -1 | W165: 72 | X165: 72 | AA165: -20 | AB165: 18 | AC165: -19 | AD165: 22 | AE165: 24 | AF165: 0 | AH165: 22 | AI165: 3 | AJ165: 21.5 | AK165: 1 | AL165: 0
A166: 2013-09-11 | B166: -1 | C166: =C165+IF(B166>0,B166,0) -> 62 | D166: =D165-IF(B166<0,B166,0) -> 83 | F166: 1 | G166: 83 | H166: 64 | J166: -1 | K166: 62 | L166: 82 | N166: 1 | O166: 84 | P166: 61 | R166: 1 | S166: 85 | T166: 60 | V166: 1 | W166: 73 | X166: 72 | AA166: -21 | AB166: 19 | AC166: -20 | AD166: 23 | AE166: 25 | AF166: 1 | AH166: 23 | AI166: 3 | AJ166: 22.5 | AK166: 1 | AL166: 0
A167: 2013-09-12 | B167: -1 | C167: 62 | D167: 84 | G167: =G166+IF(F167>0,F167,0) -> 83 | H167: =H166-IF(F167<0,F167,0) -> 64 | J167: 1 | K167: 63 | L167: 82 | N167: 1 | O167: 85 | P167: 61 | R167: -1 | S167: =S166+IF(R167>0,R167,0) -> 85 | T167: =T166-IF(R167<0,R167,0) -> 61 | V167: 1 | W167: =W166+IF(V167>0,V167,0) -> 74 | X167: =X166-IF(V167<0,V167,0) -> 72 | AA167: -22 | AB167: 19 | AC167: -19 | AD167: 24 | AE167: 24 | AF167: 2 | AH167: 23 | AI167: 2.5 | AJ167: 21.5 | AK167: 0 | AL167: 0
A168: 2013-09-13 | B168: 1 | C168: 63 | D168: 84 | F168: -1 | G168: 83 | H168: 65 | J168: 1 | K168: 64 | L168: 82 | N168: -1 | O168: 85 | P168: 62 | R168: 1 | S168: 86 | T168: 61 | W168: 74 | X168: 72 | AA168: -21 | AB168: 18 | AC168: -18 | AD168: 23 | AE168: 25 | AF168: 2 | AH168: 23 | AI168: 3.5 | AJ168: 21.5 | AK168: 1 | AL168: 0
A169: 2013-09-14 | B169: -1 | C169: 63 | D169: 85 | F169: 1 | G169: 84 | H169: 65 | J169: -1 | K169: 64 | L169: 83 | N169: 1 | O169: 86 | P169: 62 | R169: -1 | S169: 86 | T169: 62 | V169: 1 | W169: 75 | X169: 72 | AA169: -22 | AB169: 19 | AC169: -19 | AD169: 24 | AE169: 24 | AF169: 3 | AH169: 23 | AI169: 2.5 | AJ169: 21.5 | AK169: 0 | AL169: 0
A170: 2013-09-15 | B170: -1 | C170: 63 | D170: 86 | F170: -1 | G170: 84 | H170: 66 | J170: 1 | K170: 65 | L170: 83 | N170: 1 | O170: 87 | P170: 62 | R170: 1 | S170: 87 | T170: 62 | V170: 1 | W170: 76 | X170: 72 | AA170: -23 | AB170: 18 | AC170: -18 | AD170: 25 | AE170: 25 | AF170: 4 | AH170: 24 | AI170: 3.5 | AJ170: 21.5 | AK170: 0 | AL170: 0
A171: 2013-09-16 | B171: -1 | C171: 63 | D171: 87 | F171: 1 | G171: 85 | H171: 66 | J171: 1 | K171: 66 | L171: 83 | N171: -1 | O171: 87 | P171: 63 | R171: -1 | S171: 87 | T171: 63 | V171: 1 | W171: 77 | X171: 72 | AA171: -24 | AB171: 19 | AC171: -17 | AD171: 24 | AE171: 24 | AF171: 5 | AH171: 24 | AI171: 2.5 | AJ171: 20.5 | AK171: 0 | AL171: 0
A172: 2013-09-17 | B172: -1 | C172: 63 | D172: 88 | F172: 1 | G172: 86 | H172: 66 | J172: 1 | K172: 67 | L172: 83 | N172: -1 | O172: 87 | P172: 64 | R172: 1 | S172: 88 | T172: 63 | V172: 1 | W172: 78 | X172: 72 | AA172: -25 | AB172: 20 | AC172: -16 | AD172: 23 | AE172: 25 | AF172: 6 | AH172: 25 | AI172: 2.5 | AJ172: 20.5 | AK172: 1 | AL172: 0
A173: 2013-09-18 | B173: -1 | C173: 63 | D173: 89 | F173: 1 | G173: 87 | H173: 66 | J173: 1 | K173: 68 | L173: 83 | N173: -1 | O173: 87 | P173: 65 | R173: 1 | S173: 89 | T173: 63 | V173: -1 | W173: 78 | X173: 73 | AA173: -26 | AB173: 21 | AC173: -15 | AD173: 22 | AE173: 26 | AF173: 5 | AH173: 26 | AI173: 2.5 | AJ173: 20.5 | AK173: 2 | AL173: 0
A174: 2013-09-19 | B174: 1 | C174: 64 | D174: 89 | G174: 87 | H174: 66 | J174: -1 | K174: 68 | L174: 84 | N174: 1 | O174: 88 | P174: 65 | R174: -1 | S174: 89 | T174: 64 | V174: 1 | W174: 79 | X174: 73 | AA174: -25 | AB174: 21 | AC174: -16 | AD174: 23 | AE174: 25 | AF174: 6 | AH174: 25 | AI174: 2 | AJ174: 20.5 | AK174: 1 | AL174: 0
A175: 2013-09-20 | B175: -1 | C175: 64 | D175: 90 | F175: 1 | G175: 88 | H175: 66 | J175: -1 | K175: 68 | L175: 85 | N175: -1 | O175: 88 | P175: 66 | R175: 1 | S175: 90 | T175: 64 | V175: -1 | W175: 79 | X175: 74 | AA175: -26 | AB175: 22 | AC175: -17 | AD175: 22 | AE175: 26 | AF175: 5 | AH175: 26 | AI175: 2 | AJ175: 21.5 | AK175: 2 | AL175: 0
A176: 2013-09-21 | B176: 1 | C176: =C175+IF(B176>0,B176,0) -> 65 | D176: =D175-IF(B176<0,B176,0) -> 90 | F176: -1 | G176: 88 | H176: 67 | J176: -1 | K176: 68 | L176: 86 | N176: 1 | O176: 89 | P176: 66 | R176: 1 | S176: 91 | T176: 64 | V176: -1 | W176: 79 | X176: 75 | AA176: -25 | AB176: 21 | AC176: -18 | AD176: 23 | AE176: 27 | AF176: 4 | AH176: 26 | AI176: 3 | AJ176: 22.5 | AK176: 2 | AL176: 0
A177: 2013-09-22 | B177: -1 | C177: 65 | D177: 91 | F177: 1 | G177: 89 | H177: 67 | J177: 1 | K177: 69 | L177: 86 | N177: -1 | O177: 89 | P177: 67 | R177: -1 | S177: 91 | T177: 65 | V177: 1 | W177: 80 | X177: 75 | AA177: -26 | AB177: 22 | AC177: -17 | AD177: 22 | AE177: 26 | AF177: 5 | AH177: 26 | AI177: 2 | AJ177: 21.5 | AK177: 2 | AL177: 0
A178: 2013-09-23 | B178: -1 | C178: 65 | D178: 92 | F178: 1 | G178: 90 | H178: 67 | J178: 1 | K178: 70 | L178: 86 | N178: 1 | O178: 90 | P178: 67 | R178: 1 | S178: 92 | T178: 65 | V178: -1 | W178: 80 | X178: 76 | AA178: -27 | AB178: 23 | AC178: -16 | AD178: 23 | AE178: 27 | AF178: 4 | AH178: 27 | AI178: 2 | AJ178: 21.5 | AK178: 2 | AL178: 0
A179: 2013-09-24 | B179: -1 | C179: 65 | D179: 93 | F179: -1 | G179: 90 | H179: 68 | J179: -1 | K179: 70 | L179: 87 | N179: 1 | O179: 91 | P179: 67 | R179: 1 | S179: 93 | T179: 65 | V179: -1 | W179: 80 | X179: 77 | AA179: -28 | AB179: 22 | AC179: -17 | AD179: 24 | AE179: 28 | AF179: 3 | AH179: 28 | AI179: 3 | AJ179: 22.5 | AK179: 2 | AL179: 0
A180: 2013-09-25 | B180: 1 | C180: 66 | D180: 93 | F180: -1 | G180: 90 | H180: 69 | J180: 1 | K180: 71 | L180: 87 | N180: -1 | O180: 91 | P180: 68 | R180: 1 | S180: 94 | T180: 65 | V180: 1 | W180: 81 | X180: 77 | AA180: -27 | AB180: 21 | AC180: -16 | AD180: 23 | AE180: 29 | AF180: 4 | AH180: 28 | AI180: 4 | AJ180: 22.5 | AK180: 3 | AL180: 0 | AP180: Team | AQ180: GB | AR180: %
A181: 2013-09-26 | C181: 66 | D181: 93 | G181: 90 | H181: 69 | J181: 1 | K181: 72 | L181: 87 | O181: 91 | P181: 68 | S181: 94 | T181: 65 | V181: -1 | W181: 81 | X181: 78 | AA181: -27 | AB181: 21 | AC181: -15 | AD181: 23 | AE181: 29 | AF181: 3 | AH181: 28 | AI181: 4 | AJ181: 22 | AK181: 3 | AL181: 0 | AP181: =AL$1 -> STL | AQ181: =AL$185 -> 0 | AR181: =AL$187 -> 0.5987654321
A182: 2013-09-27 | B182: -1 | C182: 66 | D182: 94 | F182: -1 | G182: 90 | H182: 70 | J182: 1 | K182: 73 | L182: 87 | N182: 1 | O182: 92 | P182: 68 | R182: 1 | S182: 95 | T182: 65 | V182: 1 | W182: 82 | X182: 78 | AA182: -28 | AB182: 20 | AC182: -14 | AD182: 24 | AE182: 30 | AF182: 4 | AH182: 29 | AI182: 5 | AJ182: 22 | AK182: 3 | AL182: 0 | AP182: =AK$1 -> PIT | AQ182: =AK$185 -> 3 | AR182: =AK$187 -> 0.5802469136
A183: 2013-09-28 | B183: -1 | C183: 66 | D183: 95 | F183: -1 | G183: 90 | H183: 71 | J183: 1 | K183: 74 | L183: 87 | N183: 1 | O183: 93 | P183: 68 | R183: 1 | S183: 96 | T183: 65 | V183: 1 | W183: 83 | X183: 78 | AA183: -29 | AB183: 19 | AC183: -13 | AD183: 25 | AE183: 31 | AF183: 5 | AH183: 30 | AI183: 6 | AJ183: 22 | AK183: 3 | AL183: 0 | AP183: =AI$1 -> CIN | AQ183: =AI$185 -> 7 | AR183: =AI$187 -> 0.5555555556
A184: 2013-09-29 | B184: -1 | C184: 66 | D184: 96 | F184: -1 | G184: 90 | H184: 72 | J184: -1 | K184: 74 | L184: 88 | N184: 1 | O184: 94 | P184: 68 | R184: 1 | S184: 97 | T184: 65 | V184: -1 | W184: 83 | X184: 79 | AA184: -30 | AB184: 18 | AC184: -14 | AD184: 26 | AE184: 32 | AF184: 4 | AH184: 31 | AI184: 7 | AJ184: 23 | AK184: 3 | AL184: 0 | AP184: =AJ$1 -> MIL | AQ184: =AJ$185 -> 23 | AR184: =AJ$187 -> 0.4567901235
A185: 2013-09-30 | C185: 66 | D185: 96 | G185: 90 | H185: 72 | K185: 74 | L185: 88 | O185: 94 | P185: 68 | S185: 97 | T185: 65 | W185: 83 | X185: 79 | AA185: -30 | AB185: 18 | AC185: -14 | AD185: 26 | AE185: 32 | AF185: 4 | AH185: 31 | AI185: 7 | AJ185: 23 | AK185: 3 | AL185: 0 | AP185: =AH$1 -> CHC | AQ185: =AH$185 -> 31 | AR185: =AH$187 -> 0.4074074074
AH187: =C185/(C185+D185) -> 0.4074074074 | AI187: =G185/(G185+H185) -> 0.5555555556 | AJ187: =K185/(K185+L185) -> 0.4567901235 | AK187: =O185/(O185+P185) -> 0.5802469136 | AL187: =S185/(S185+T185) -> 0.5987654321
